{"text_format":"1","workbook":"xlsx","n_sheets":20,"sheets":["Sheet1","Data","P1","P2","P3","P4","P5","P6","P7","P8","Page 1","Page 2","Page 3","Page 4","Page 5","PageB 1","PageB 2","PageB 3","PageB 4","PageB 5"],"not_rendered":{"charts":0,"images":6,"macros":1,"external_links":0,"defined_names":27,"comments":0,"pivot_tables":0},"unopened":[],"bounds":{"document_bytes":16777216,"sheet_cells":100000,"rows_first":2000,"rows_last":500,"rows_between":2000,"halvings":0,"cell_chars":16384,"cell_head_chars":4096},"cells_cut":0,"cells_raw":0,"read":"whole","date_system":"1900"}

{"sheet":"Sheet1","index":0,"n_rows":53,"n_cols":42,"rows_kept":53,"cut":false,"hidden":true,"merged":[]}
[]
["ทั่วไป","วิชาการ","อำนวยการท้องถิ่น","บริหารงานท้องถิ่น",null,null,null,null,null,null,null,null,null,null,null,null,null,null,null,null,null,null,null,null,null,null,null,null,null,null,null,null,null,null,null,null,null,null,"ทั่วไป","วิชาการ","อำนวยการท้องถิ่น","นักบริหารงานท้องถิ่น"]
["เจ้าพนักงานธุรการ","นักจัดการงานทั่วไป","นักบริหารงานทั่วไป","นักบริหารท้องถิ่น",null,null,null,null,null,null,null,null,null,null,null,null,null,null,null,null,null,null,null,null,null,null,null,null,null,null,null,null,null,null,null,null,null,null,"เจ้าพนักงานธุรการ","นักจัดการงานทั่วไป","นักบริหารงานทั่วไป","นักบริหารท้องถิ่น"]
["เจ้าพนักงานทะเบียน","นักทรัพยากรบุคคล","นักบริหารงานคลัง",null,null,null,null,null,null,null,null,null,null,null,null,null,null,null,null,null,null,null,null,null,null,null,null,null,null,null,null,null,null,null,null,null,null,null,"เจ้าพนักงานทะเบียน","นักทรัพยากรบุคคล","นักบริหารงานคลัง"]
["เจ้าพนักงานเวชสถิติ","นักวิเคราะห์นโยบายและแผน","นักบริหารงานช่าง",null,null,null,null,null,null,null,null,null,null,null,null,null,null,null,null,null,null,null,null,null,null,null,null,null,null,null,null,null,null,null,null,null,null,null,"เจ้าพนักงานเวชสถิติ","นักวิเคราะห์นโยบายและแผน","นักบริหารงานช่าง"]
["เจ้าพนักงานการเงินและบัญชี","นักจัดการงานทะเบียนและบัตร","นักบริหารงานสาธารณสุขและสิ่งแวดล้อม",null,null,null,null,null,null,null,null,null,null,null,null,null,null,null,null,null,null,null,null,null,null,null,null,null,null,null,null,null,null,null,null,null,null,null,"เจ้าพนักงานการเงินและบัญชี","นักจัดการงานทะเบียนและบัตร","นักบริหารงานสาธารณสุขและสิ่งแวดล้อม"]
["เจ้าพนักงานการคลัง","นิติกร","นักบริหารงานสวัสดิการสังคม",null,null,null,null,null,null,null,null,null,null,null,null,null,null,null,null,null,null,null,null,null,null,null,null,null,null,null,null,null,null,null,null,null,null,null,"เจ้าพนักงานการคลัง","นิติกร","นักบริหารงานสวัสดิการสังคม"]
["เจ้าพนักงานพัสดุ","นักวิชาการคอมพิวเตอร์","นักบริหารงานประปา",null,null,null,null,null,null,null,null,null,null,null,null,null,null,null,null,null,null,null,null,null,null,null,null,null,null,null,null,null,null,null,null,null,null,null,"เจ้าพนักงานพัสดุ","นักวิชาการคอมพิวเตอร์","นักบริหารงานประปา"]
["เจ้าพนักงานจัดเก็บรายได้","นักวิชาการเงินและบัญชี","นักบริหารงานการศึกษา",null,null,null,null,null,null,null,null,null,null,null,null,null,null,null,null,null,null,null,null,null,null,null,null,null,null,null,null,null,null,null,null,null,null,null,"เจ้าพนักงานจัดเก็บรายได้","นักวิชาการเงินและบัญชี","นักบริหารงานการศึกษา"]
["เจ้าพนักงานประชาสัมพันธ์","นักวิชาการคลัง","นักบริหารงานช่างสุขาภิบาล",null,null,null,null,null,null,null,null,null,null,null,null,null,null,null,null,null,null,null,null,null,null,null,null,null,null,null,null,null,null,null,null,null,null,null,"เจ้าพนักงานประชาสัมพันธ์","นักวิชาการคลัง","นักบริหารงานช่างสุขาภิบาล"]
["เจ้าพนักงานส่งเสริมการท่องเที่ยว","นักวิชาการจัดเก็บรายได้","นักบริหารงานการเกษตร",null,null,null,null,null,null,null,null,null,null,null,null,null,null,null,null,null,null,null,null,null,null,null,null,null,null,null,null,null,null,null,null,null,null,null,"เจ้าพนักงานส่งเสริมการท่องเที่ยว","นักวิชาการจัดเก็บรายได้","นักบริหารงานการเกษตร"]
["เจ้าพนักงานการเกษตร","นักวิชาการพัสดุ",null,null,null,null,null,null,null,null,null,null,null,null,null,null,null,null,null,null,null,null,null,null,null,null,null,null,null,null,null,null,null,null,null,null,null,null,"เจ้าพนักงานการเกษตร","นักวิชาการพัสดุ"]
["เจ้าพนักงานประมง","นักวิชาการตรวจสอบภายใน",null,null,null,null,null,null,null,null,null,null,null,null,null,null,null,null,null,null,null,null,null,null,null,null,null,null,null,null,null,null,null,null,null,null,null,null,"เจ้าพนักงานประมง","นักวิชาการตรวจสอบภายใน"]
["สัตวบาล","นักวิชาการพาณิชย์",null,null,null,null,null,null,null,null,null,null,null,null,null,null,null,null,null,null,null,null,null,null,null,null,null,null,null,null,null,null,null,null,null,null,null,null,"สัตวบาล","นักวิชาการพาณิชย์"]
["เจ้าพนักงานสวนสาธารณะ","นักประชาสัมพันธ์",null,null,null,null,null,null,null,null,null,null,null,null,null,null,null,null,null,null,null,null,null,null,null,null,null,null,null,null,null,null,null,null,null,null,null,null,"เจ้าพนักงานสวนสาธารณะ","นักประชาสัมพันธ์"]
["เจ้าพนักงานวิทยาศาสตร์","นักพัฒนาการท่องเที่ยว",null,null,null,null,null,null,null,null,null,null,null,null,null,null,null,null,null,null,null,null,null,null,null,null,null,null,null,null,null,null,null,null,null,null,null,null,"เจ้าพนักงานวิทยาศาสตร์","นักพัฒนาการท่องเที่ยว"]
["เจ้าพนักงานสาธารณสุข","นักวิเทศสัมพันธ์",null,null,null,null,null,null,null,null,null,null,null,null,null,null,null,null,null,null,null,null,null,null,null,null,null,null,null,null,null,null,null,null,null,null,null,null,"เจ้าพนักงานสาธารณสุข","นักวิเทศสัมพันธ์"]
["พยาบาลเทคนิค","นักวิชาการเกษตร",null,null,null,null,null,null,null,null,null,null,null,null,null,null,null,null,null,null,null,null,null,null,null,null,null,null,null,null,null,null,null,null,null,null,null,null,"พยาบาลเทคนิค","นักวิชาการเกษตร"]
["เจ้าพนักงานเวชกรรมฟื้นฟู","นักวิชาการประมง",null,null,null,null,null,null,null,null,null,null,null,null,null,null,null,null,null,null,null,null,null,null,null,null,null,null,null,null,null,null,null,null,null,null,null,null,"เจ้าพนักงานเวชกรรมฟื้นฟู","นักวิชาการประมง"]
["เจ้าพนักงานสุขาภิบาล","นักวิชาการสวนสาธารณะ",null,null,null,null,null,null,null,null,null,null,null,null,null,null,null,null,null,null,null,null,null,null,null,null,null,null,null,null,null,null,null,null,null,null,null,null,"เจ้าพนักงานสุขาภิบาล","นักวิชาการสวนสาธารณะ"]
["โภชนากร","นักวิทยาศาสตร์",null,null,null,null,null,null,null,null,null,null,null,null,null,null,null,null,null,null,null,null,null,null,null,null,null,null,null,null,null,null,null,null,null,null,null,null,"โภชนากร","นักวิทยาศาสตร์"]
["เจ้าพนักงานรังสีการแพทย์","นักวิชาการสาธารณสุข",null,null,null,null,null,null,null,null,null,null,null,null,null,null,null,null,null,null,null,null,null,null,null,null,null,null,null,null,null,null,null,null,null,null,null,null,"เจ้าพนักงานรังสีการแพทย์","นักวิชาการสาธารณสุข"]
["เจ้าพนักงานวิทยาศาสตร์การแพทย์","พยาบาลวิชาชีพ",null,null,null,null,null,null,null,null,null,null,null,null,null,null,null,null,null,null,null,null,null,null,null,null,null,null,null,null,null,null,null,null,null,null,null,null,"เจ้าพนักงานวิทยาศาสตร์การแพทย์","พยาบาลวิชาชีพ"]
["เจ้าพนักงานเภสัชกรรม","นักกายภาพบำบัด",null,null,null,null,null,null,null,null,null,null,null,null,null,null,null,null,null,null,null,null,null,null,null,null,null,null,null,null,null,null,null,null,null,null,null,null,"เจ้าพนักงานเภสัชกรรม","นักกายภาพบำบัด"]
["เจ้าพนักงานทันตสาธารณสุข","นักอาชีวบำบัด",null,null,null,null,null,null,null,null,null,null,null,null,null,null,null,null,null,null,null,null,null,null,null,null,null,null,null,null,null,null,null,null,null,null,null,null,"เจ้าพนักงานทันตสาธารณสุข","นักอาชีวบำบัด"]
["สัตวแพทย์","แพทย์แผนไทย",null,null,null,null,null,null,null,null,null,null,null,null,null,null,null,null,null,null,null,null,null,null,null,null,null,null,null,null,null,null,null,null,null,null,null,null,"สัตวแพทย์","แพทย์แผนไทย"]
["นายช่างโยธา","นักวิชาการสุขาภิบาล",null,null,null,null,null,null,null,null,null,null,null,null,null,null,null,null,null,null,null,null,null,null,null,null,null,null,null,null,null,null,null,null,null,null,null,null,"นายช่างโยธา","นักวิชาการสุขาภิบาล"]
["นายช่างเขียนแบบ","นักวิชาการสิ่งแวดล้อม",null,null,null,null,null,null,null,null,null,null,null,null,null,null,null,null,null,null,null,null,null,null,null,null,null,null,null,null,null,null,null,null,null,null,null,null,"นายช่างเขียนแบบ","นักวิชาการสิ่งแวดล้อม"]
["นายช่างสำรวจ","นักโภชนาการ",null,null,null,null,null,null,null,null,null,null,null,null,null,null,null,null,null,null,null,null,null,null,null,null,null,null,null,null,null,null,null,null,null,null,null,null,"นายช่างสำรวจ","นักโภชนาการ"]
["นายช่างผังเมือง","นักเทคนิคการแพทย์",null,null,null,null,null,null,null,null,null,null,null,null,null,null,null,null,null,null,null,null,null,null,null,null,null,null,null,null,null,null,null,null,null,null,null,null,"นายช่างผังเมือง","นักเทคนิคการแพทย์"]
["นายช่างเครื่องกล","นักวิทยาศาสตร์การแพทย์",null,null,null,null,null,null,null,null,null,null,null,null,null,null,null,null,null,null,null,null,null,null,null,null,null,null,null,null,null,null,null,null,null,null,null,null,"นายช่างเครื่องกล","นักวิทยาศาสตร์การแพทย์"]
["นายช่างไฟฟ้า","นักรังสีการแพทย์",null,null,null,null,null,null,null,null,null,null,null,null,null,null,null,null,null,null,null,null,null,null,null,null,null,null,null,null,null,null,null,null,null,null,null,null,"นายช่างไฟฟ้า","นักรังสีการแพทย์"]
["เจ้าพนักงานประปา","เภสัชกร",null,null,null,null,null,null,null,null,null,null,null,null,null,null,null,null,null,null,null,null,null,null,null,null,null,null,null,null,null,null,null,null,null,null,null,null,"เจ้าพนักงานประปา","เภสัชกร"]
["นายช่างศิลป์","ทันตแพทย์",null,null,null,null,null,null,null,null,null,null,null,null,null,null,null,null,null,null,null,null,null,null,null,null,null,null,null,null,null,null,null,null,null,null,null,null,"นายช่างศิลป์","ทันตแพทย์"]
["นายช่างภาพ","นายสัตแพทย์",null,null,null,null,null,null,null,null,null,null,null,null,null,null,null,null,null,null,null,null,null,null,null,null,null,null,null,null,null,null,null,null,null,null,null,null,"นายช่างภาพ","นายสัตแพทย์"]
["เจ้าพนักงานพัฒนาชุมชน","นายแพทย์",null,null,null,null,null,null,null,null,null,null,null,null,null,null,null,null,null,null,null,null,null,null,null,null,null,null,null,null,null,null,null,null,null,null,null,null,"เจ้าพนักงานพัฒนาชุมชน","นายแพทย์"]
["เจ้าพนักงานห้องสมุด","วิศวกรโยธา",null,null,null,null,null,null,null,null,null,null,null,null,null,null,null,null,null,null,null,null,null,null,null,null,null,null,null,null,null,null,null,null,null,null,null,null,"เจ้าพนักงานห้องสมุด","วิศวกรโยธา"]
["เจ้าพนักงานศูนย์เยาวชน","สถาปนิก",null,null,null,null,null,null,null,null,null,null,null,null,null,null,null,null,null,null,null,null,null,null,null,null,null,null,null,null,null,null,null,null,null,null,null,null,"เจ้าพนักงานศูนย์เยาวชน","สถาปนิก"]
["เจ้าพนักงานเทศกิจ","นักผังเมือง",null,null,null,null,null,null,null,null,null,null,null,null,null,null,null,null,null,null,null,null,null,null,null,null,null,null,null,null,null,null,null,null,null,null,null,null,"เจ้าพนักงานเทศกิจ","นักผังเมือง"]
["เจ้าพนักงานป้องกันและบรรเทาสาธารณภัย","วิศวกรเครื่องกล",null,null,null,null,null,null,null,null,null,null,null,null,null,null,null,null,null,null,null,null,null,null,null,null,null,null,null,null,null,null,null,null,null,null,null,null,"เจ้าพนักงานป้องกันและบรรเทาสาธารณภัย","วิศวกรเครื่องกล"]
[null,"วิศวกรไฟฟ้า",null,null,null,null,null,null,null,null,null,null,null,null,null,null,null,null,null,null,null,null,null,null,null,null,null,null,null,null,null,null,null,null,null,null,null,null,null,"วิศวกรไฟฟ้า"]
[null,"วิศวกรสุขาภิบาล",null,null,null,null,null,null,null,null,null,null,null,null,null,null,null,null,null,null,null,null,null,null,null,null,null,null,null,null,null,null,null,null,null,null,null,null,null,"วิศวกรสุขาภิบาล"]
[null,"นักจัดการงานช่าง",null,null,null,null,null,null,null,null,null,null,null,null,null,null,null,null,null,null,null,null,null,null,null,null,null,null,null,null,null,null,null,null,null,null,null,null,null,"นักจัดการงานช่าง"]
[null,"นักพัฒนาชุมชน",null,null,null,null,null,null,null,null,null,null,null,null,null,null,null,null,null,null,null,null,null,null,null,null,null,null,null,null,null,null,null,null,null,null,null,null,null,"นักพัฒนาชุมชน"]
[null,"นักสังคมสงเคราะห์",null,null,null,null,null,null,null,null,null,null,null,null,null,null,null,null,null,null,null,null,null,null,null,null,null,null,null,null,null,null,null,null,null,null,null,null,null,"นักสังคมสงเคราะห์"]
[null,"นักวิชาการศึกษา",null,null,null,null,null,null,null,null,null,null,null,null,null,null,null,null,null,null,null,null,null,null,null,null,null,null,null,null,null,null,null,null,null,null,null,null,null,"นักวิชาการศึกษา"]
[null,"บรรณารักษ์",null,null,null,null,null,null,null,null,null,null,null,null,null,null,null,null,null,null,null,null,null,null,null,null,null,null,null,null,null,null,null,null,null,null,null,null,null,"บรรณารักษ์"]
[null,"นักวิชาการวัฒนธรรม",null,null,null,null,null,null,null,null,null,null,null,null,null,null,null,null,null,null,null,null,null,null,null,null,null,null,null,null,null,null,null,null,null,null,null,null,null,"นักวิชาการวัฒนธรรม"]
[null,"นักสันทนาการ",null,null,null,null,null,null,null,null,null,null,null,null,null,null,null,null,null,null,null,null,null,null,null,null,null,null,null,null,null,null,null,null,null,null,null,null,null,"นักสันทนาการ"]
[null,"นักพัฒนาการกีฬา",null,null,null,null,null,null,null,null,null,null,null,null,null,null,null,null,null,null,null,null,null,null,null,null,null,null,null,null,null,null,null,null,null,null,null,null,null,"นักพัฒนาการกีฬา"]
[null,"ภัณฑารักษ์",null,null,null,null,null,null,null,null,null,null,null,null,null,null,null,null,null,null,null,null,null,null,null,null,null,null,null,null,null,null,null,null,null,null,null,null,null,"ภัณฑารักษ์"]
[null,"นักจัดการงานเทศกิจ",null,null,null,null,null,null,null,null,null,null,null,null,null,null,null,null,null,null,null,null,null,null,null,null,null,null,null,null,null,null,null,null,null,null,null,null,null,"นักจัดการงานเทศกิจ"]
[null,"นักป้องกันและบรรเทาสาธารณภัย",null,null,null,null,null,null,null,null,null,null,null,null,null,null,null,null,null,null,null,null,null,null,null,null,null,null,null,null,null,null,null,null,null,null,null,null,null,"นักป้องกันและบรรเทาสาธารณภัย"]

{"sheet":"Data","index":1,"n_rows":146,"n_cols":41,"rows_kept":146,"cut":false,"hidden":false,"merged":[[129,2,129,4],[127,4,127,5],[114,1,114,4]]}
[null,null,null,null,null,"เจ้าพนักงานธุรการ"]
[null,null,null,null,null,"เจ้าพนักงานทะเบียน"]
[null,null,null,null,null,"เจ้าพนักงานเวชสถิติ"]
[null,null,null,null,null,"เจ้าพนักงานการเงินและบัญชี"]
[null,null,null,null,null,"เจ้าพนักงานการคลัง"]
[null,null,null,null,null,"เจ้าพนักงานพัสดุ"]
[null,null,null,null,null,"เจ้าพนักงานจัดเก็บรายได้"]
[null,null,null,null,null,"เจ้าพนักงานประชาสัมพันธ์"]
[null,null,null,null,null,"เจ้าพนักงานส่งเสริมการท่องเที่ยว"]
[null,null,null,null,null,"เจ้าพนักงานการเกษตร"]
[null,null,null,null,null,"เจ้าพนักงานประมง"]
[null,null,null,null,null,"สัตวบาล"]
[null,null,null,null,null,"เจ้าพนักงานสวนสาธารณะ"]
[null,null,null,null,null,"เจ้าพนักงานวิทยาศาสตร์"]
[null,null,null,null,null,"เจ้าพนักงานสาธารณสุข"]
[null,null,null,null,null,"พยาบาลเทคนิค"]
[null,null,null,null,null,"เจ้าพนักงานเวชกรรมฟื้นฟู"]
[null,null,null,null,null,"เจ้าพนักงานสุขาภิบาล"]
[null,null,null,null,null,"โภชนากร"]
[null,null,null,null,null,"เจ้าพนักงานรังสีการแพทย์"]
[null,null,null,null,null,"เจ้าพนักงานวิทยาศาสตร์การแพทย์"]
[null,null,null,null,null,"เจ้าพนักงานเภสัชกรรม"]
[null,null,null,null,null,"เจ้าพนักงานทันตสาธารณสุข"]
[null,null,null,null,null,"สัตวแพทย์"]
[null,null,null,null,null,"นายช่างโยธา"]
[null,null,null,null,null,"นายช่างเขียนแบบ"]
[null,null,null,null,null,"นายช่างสำรวจ"]
[null,null,null,null,null,"นายช่างผังเมือง"]
[null,null,null,null,null,"นายช่างเครื่องกล"]
[null,null,null,null,null,"นายช่างไฟฟ้า"]
[null,null,null,null,null,"เจ้าพนักงานประปา"]
[null,null,null,null,null,"นายช่างศิลป์"]
[null,null,null,null,null,"นายช่างภาพ"]
[null,null,null,null,null,"เจ้าพนักงานพัฒนาชุมชน"]
[null,null,null,null,null,"เจ้าพนักงานห้องสมุด"]
[null,null,null,null,null,"เจ้าพนักงานศูนย์เยาวชน"]
[null,null,null,null,null,"เจ้าพนักงานเทศกิจ"]
[null,null,null,null,null,"เจ้าพนักงานป้องกันและบรรเทาสาธารณภัย"]
[null,null,null,null,null,"นักจัดการงานทั่วไป"]
[null,null,null,null,null,"นักทรัพยากรบุคคล"]
[null,null,null,null,null,"นักวิเคราะห์นโยบายและแผน"]
[null,null,null,null,null,"นักจัดการงานทะเบียนและบัตร"]
[null,null,null,null,null,"นิติกร"]
[null,null,null,null,null,"นักวิชาการคอมพิวเตอร์"]
[null,null,null,null,null,"นักวิชาการเงินและบัญชี"]
[null,null,null,null,null,"นักวิชาการคลัง"]
[null,null,null,null,null,"นักวิชาการจัดเก็บรายได้"]
[null,null,null,null,null,"นักวิชาการพัสดุ"]
[null,null,null,null,null,"นักวิชาการตรวจสอบภายใน"]
[null,null,null,null,null,"นักวิชาการพาณิชย์"]
[null,null,null,null,null,"นักประชาสัมพันธ์"]
[null,null,null,null,null,"นักพัฒนาการท่องเที่ยว"]
[null,null,null,null,null,"นักวิเทศสัมพันธ์"]
[null,null,null,null,null,"นักวิชาการเกษตร"]
[null,null,null,null,null,"นักวิชาการประมง"]
[null,null,null,null,null,"นักวิชาการสวนสาธารณะ"]
[null,null,null,null,null,"นักวิทยาศาสตร์"]
[null,null,null,null,null,"นักวิชาการสาธารณสุข"]
[null,null,null,null,null,"พยาบาลวิชาชีพ"]
[null,null,null,null,null,"นักกายภาพบำบัด"]
[null,null,null,null,null,"นักอาชีวบำบัด"]
[null,null,null,null,null,"แพทย์แผนไทย"]
[null,null,null,null,null,"นักวิชาการสุขาภิบาล"]
[null,null,null,null,null,"นักวิชาการสิ่งแวดล้อม"]
[null,null,null,null,null,"นักโภชนาการ"]
[null,null,null,null,null,"นักเทคนิคการแพทย์"]
[null,null,null,null,null,"นักวิทยาศาสตร์การแพทย์"]
[null,null,null,null,null,"นักรังสีการแพทย์"]
[null,null,null,null,null,"เภสัชกร"]
[null,null,null,null,null,"ทันตแพทย์"]
[null,null,null,null,null,"นายสัตแพทย์"]
[null,null,null,null,null,"นายแพทย์"]
[null,null,null,null,null,"วิศวกรโยธา"]
[null,null,null,null,null,"สถาปนิก"]
[null,null,null,null,null,"นักผังเมือง"]
[null,null,null,null,null,"วิศวกรเครื่องกล"]
[null,null,null,null,null,"วิศวกรไฟฟ้า"]
[null,null,null,null,null,"วิศวกรสุขาภิบาล"]
[null,null,null,null,null,"นักจัดการงานช่าง"]
[null,null,null,null,null,"นักพัฒนาชุมชน"]
[null,null,null,null,null,"นักสังคมสงเคราะห์"]
[null,null,null,null,null,"นักวิชาการศึกษา"]
[null,null,null,null,null,"บรรณารักษ์"]
[null,null,null,null,null,"นักวิชาการวัฒนธรรม"]
[null,null,null,null,null,"นักสันทนาการ"]
[null,null,null,null,null,"นักพัฒนาการกีฬา"]
[null,null,null,null,null,"ภัณฑารักษ์"]
[null,null,null,null,null,"นักจัดการงานเทศกิจ"]
[null,null,null,null,null,"นักป้องกันและบรรเทาสาธารณภัย"]
[null,null,null,null,null,"นักบริหารงานทั่วไป"]
[null,null,null,null,null,"นักบริหารงานคลัง"]
[null,null,null,null,null,"นักบริหารงานช่าง"]
[null,null,null,null,null,"นักบริหารงานสาธารณสุขและสิ่งแวดล้อม"]
[null,null,null,null,null,"นักบริหารงานสวัสดิการสังคม"]
[null,null,null,null,null,"นักบริหารงานประปา"]
[null,null,null,null,null,"นักบริหารงานการศึกษา"]
[null,null,null,null,null,"นักบริหารงานช่างสุขาภิบาล"]
[null,null,null,null,null,"นักบริหารงานการเกษตร"]
[null,null,null,null,null,"นักบริหารท้องถิ่น"]
[null,null,null,null,null,"ปฎิบัติงาน"]
[null,null,null,null,null,"ชำนาญงาน"]
[null,null,null,null,null,"อาวุโส"]
[null,null,null,null,null,"ปฎิบัติการ"]
[null,null,null,null,null,"ชำนาญการ"]
[null,null,null,null,null,"ชำนาญการพิเศษ"]
[null,null,null,null,null,"เชี่ยวชาญ"]
[null,null,null,null,null,"ต้น"]
[null,null,null,null,null,"กลาง"]
[null,null,null,null,null,"สูง"]
[null,null,null,null,null,"ทั่วไป"]
[null,null,null,null,null,"วิชาการ"]
[null,null,null,null,null,"อำนวยการท้องถิ่น"]
[null,null,null,null,null,"บริหารงานท้องถิ่น"]
[null,null,null,null,null,"แบบประเมินผลการปฏิบัติงานของพนักงานส่วนท้องถิ่น          "]
[null,"สำหรับตำแหน่งประเภท   ->   ",null,null,null,"วิชาการ และทั่วไป"]
[null,"ผู้รับการประเมิน","นายชุติพล  นิลพันธ์",null,"ประเภทตำแหน่ง","ทั่วไป",null,null,null,null,null,null,null,null,null,null,null,null,null,null,null,null,null,null,null,null,null,"เลขบัตรประชาชน 13 หลัก",{"$f":"C117","v":1312111098765},{"$f":"LEN(AC116)","v":13}]
[null,"หมายเลขบัตรประชาชน",1312111098765,{"$f":"IF(RIGHT(AC116,1)=AD126,\"P\",\"O\")","v":"O"},"ตำแหน่ง","นายช่างเขียนแบบ",null,null,null,null,null,null,null,null,null,null,null,null,null,null,null,null,null,null,null,null,null,null,null,"แยกออกมาทีละตัว"]
[null,"เลขที่ตำแหน่ง",109876543212,null,"ระดับ","ปฎิบัติงาน",null,null,null,null,null,null,null,null,null,null,null,null,null,null,null,null,null,null,null,null,null,null,null,1,2,3,4,5,6,7,8,9,10,11,12]
[null,"ประเมินครั้งที่",1,null,"สังกัด","กองช่าง",null,null,null,null,null,null,null,null,null,null,null,null,null,null,null,null,null,null,null,null,null,"เลขบัตรประชาชน 12 หลักแรก",{"$f":"LEFT(AC116,12)*1","v":131211109876},{"$f":"MID($AC$119,AD118,1)*1","v":1},{"$f":"MID($AC$119,AE118,1)*1","v":3},1,2,1,1,1,0,9,8,7,6]
[null,"ปีงบประมาณ",2563,null,"ส่วน/ฝ่าย","แบบแผนและก่อสร้าง"]
[null,null,null,null,"งาน","วิศวกรรมและสถาปัตยกรรม",null,null,null,null,null,null,null,null,null,null,null,null,null,null,null,null,null,null,null,null,null,null,"คูณด้วย",13,12,11,10,9,8,7,6,5,4,3,2]
[]
[null,"ผู้ประเมิน","นายวิเชียร อรรถพร",null,"ประเภทตำแหน่ง","วิชาการ",null,null,null,null,null,null,null,null,null,null,null,null,null,null,null,null,null,null,null,null,null,null,"รวมผลคูณ",{"$f":"SUMPRODUCT(AD119:AO119,AD121:AO121)","v":214}]
[null,"หมายเลขบัตรประชาชน",1453698715463,{"$f":"IF(RIGHT(AC131,1)=AD141,\"P\",\"O\")","v":"O"},"ตำแหน่ง","ผู้อำนวยการกองช่าง",null,null,null,null,null,null,null,null,null,null,null,null,null,null,null,null,null,null,null,null,null,null,"หาเศษเหลือจากการหารด้วย 11",{"$f":"MOD(AD123,11)","v":5}]
[null,null,null,null,"ระดับ","อาวุโส",null,null,null,null,null,null,null,null,null,null,null,null,null,null,null,null,null,null,null,null,null,null,"เอา 11 ไปลบด้วยผลลัพธ์",{"$f":"11-AD124","v":6}]
[null,null,null,null,null,null,null,null,null,null,null,null,null,null,null,null,null,null,null,null,null,null,null,null,null,null,null,null,"Digit สุดท้าย = Check Digit",{"$f":"RIGHT(AD125,1)","v":"6"}]
[null,"ประธานคณะกรรมการกลั่นกรองการประเมินผลการปฏิบัติงาน ฯ","นางสุดาทิพย์ มโนวราวุฒิ",null,"ตำแหน่ง","รองปลัดเทศบาล ปฏิบัติราชการแทนปลัดเทศบาล",null,null,null,null,null,null,null,null,null,null,null,null,null,null,null,null,null,null,null,null,null,null,"กรอกเลขบัตรถูกหรือไม่",{"$f":"RIGHT(AC116,1)=AD126","v":false}]
[null,{"$f":"IF(C130=\"องค์การบริหารส่วนตำบล\",\"นายกองค์การบริหารส่วนตำบล\",IF(C130=\"องค์การบริหารส่วนจังหวัด\",\"นายกองค์การบริหารส่วนจังหวัด\",\"นายกเทศมนตรี\"))","v":"นายกเทศมนตรี"},"นายจารึก  เพ็ชรคง",null,"ปลัดเทศบาล ปฏิบัติหน้าที่นายกเทศมนตรี"]
[]
[null,"หน่วยงาน","เทศบาลตำบล",null,null,"วัดประดู่",null,null,null,null,null,null,null,null,null,null,null,"ระดับทั่วไป","ระดับวิชาการ","ระดับอำนวยการท้องถิ่น","ระดับบริหารงานท้องถิ่น"]
[null,null,null,null,null,null,null,null,null,null,null,null,null,null,null,null,null,"ปฎิบัติงาน","ปฎิบัติการ","ต้น","ต้น",null,null,null,null,null,null,"เลขบัตรประชาชน 13 หลัก",{"$f":"C124","v":1453698715463},{"$f":"LEN(AC131)","v":13}]
[null,null,null,null,null,null,null,null,null,null,null,null,null,null,null,null,null,"ชำนาญงาน","ชำนาญการ","กลาง","กลาง",null,null,null,null,null,null,null,null,"แยกออกมาทีละตัว"]
[null,null,null,null,null,null,null,null,null,null,null,null,null,null,null,null,null,"อาวุโส","ชำนาญการพิเศษ","สูง","สูง",null,null,null,null,null,null,null,null,1,2,3,4,5,6,7,8,9,10,11,12]
[null,null,null,null,null,null,null,null,null,null,null,null,null,null,null,null,null,null,"เชี่ยวชาญ",null,null,null,null,null,null,null,null,"เลขบัตรประชาชน 12 หลักแรก",{"$f":"LEFT(AC131,12)*1","v":145369871546},{"$f":"MID($AC$119,AD133,1)*1","v":1},{"$f":"MID($AC$119,AE133,1)*1","v":3},{"$f":"MID($AC$119,AF133,1)*1","v":1},{"$f":"MID($AC$119,AG133,1)*1","v":2},{"$f":"MID($AC$119,AH133,1)*1","v":1},{"$f":"MID($AC$119,AI133,1)*1","v":1},{"$f":"MID($AC$119,AJ133,1)*1","v":1},{"$f":"MID($AC$119,AK133,1)*1","v":0},{"$f":"MID($AC$119,AL133,1)*1","v":9},{"$f":"MID($AC$119,AM133,1)*1","v":8},{"$f":"MID($AC$119,AN133,1)*1","v":7},{"$f":"MID($AC$119,AO133,1)*1","v":6}]
[null,null,null,null,null,null,null,null,null,null,null,null,null,null,null,null,null,"ประเภท","ระดับ"]
[null,null,null,null,null,null,null,null,null,null,null,null,null,null,null,null,null,"ทั่วไป","ระดับทั่วไป",null,null,null,null,null,null,null,null,null,"คูณด้วย",13,12,11,10,9,8,7,6,5,4,3,2]
[null,null,null,null,null,null,null,null,null,null,null,null,null,null,null,null,null,"วิชาการ","ระดับวิชาการ"]
[null,null,null,null,null,null,null,null,null,null,null,null,null,null,null,null,null,"อำนวยการท้องถิ่น","ระดับอำนวยการท้องถิ่น",null,null,null,null,null,null,null,null,null,"รวมผลคูณ",{"$f":"SUMPRODUCT(AD134:AO134,AD136:AO136)","v":214}]
[null,null,null,null,null,null,null,null,null,null,null,null,null,null,null,null,null,"บริหารงานท้องถิ่น","ระดับบริหารงานท้องถิ่น",null,null,null,null,null,null,null,null,null,"หาเศษเหลือจากการหารด้วย 11",{"$f":"MOD(AD138,11)","v":5}]
[null,null,null,null,null,null,null,null,null,null,null,null,null,null,null,null,null,null,null,null,null,null,null,null,null,null,null,null,"เอา 11 ไปลบด้วยผลลัพธ์",{"$f":"11-AD139","v":6}]
[null,null,null,null,null,null,null,null,null,null,null,null,null,null,null,null,null,"หน่วยงาน","ผู้บริหาร",null,null,null,null,null,null,null,null,null,"Digit สุดท้าย = Check Digit",{"$f":"RIGHT(AD140,1)","v":"6"}]
[null,null,null,null,null,null,null,null,null,null,null,null,null,null,null,null,null,"เทศบาลเมือง","นายกเทศมนตรีเมือง",null,null,null,null,null,null,null,null,null,"กรอกเลขบัตรถูกหรือไม่",{"$f":"RIGHT(AC131,1)=AD141","v":false}]
[null,null,null,null,null,null,null,null,null,null,null,null,null,null,null,null,null,"เทศบาลตำบล","นายกเทศมนตรีตำบล"]
[null,null,null,null,null,null,null,null,null,null,null,null,null,null,null,null,null,"เทศบาลนคร","นายกเทศมนตรีนคร"]
[null,null,null,null,null,null,null,null,null,null,null,null,null,null,null,null,null,"องค์การบริหารส่วนจังหวัด","นายกองค์การบริหารส่วนจังหวัด"]
[null,null,null,null,null,null,null,null,null,null,null,null,null,null,null,null,null,"องค์การบริหารส่วนตำบล","นายกองค์การบริหารส่วนตำบล"]

{"sheet":"P1","index":2,"n_rows":15,"n_cols":74,"rows_kept":15,"cut":false,"hidden":true,"merged":[[14,3,14,10],[13,27,13,33],[14,27,14,33],[13,57,13,69],[14,57,14,69],[13,50,13,56],[14,50,14,56],[14,11,14,24],[14,34,14,47],[11,11,11,24],[11,34,11,47],[10,50,10,56],[2,2,2,70],[3,2,3,70],[5,19,5,58],[6,19,6,58],[8,2,8,70],[5,13,5,16],[6,13,6,16],[12,2,12,70],[13,13,13,24],[13,34,13,47],[9,13,9,24],[9,34,9,47],[9,50,9,56],[9,57,9,69],[9,27,9,33],[11,3,11,10],[11,57,11,69],[10,57,10,69],[11,50,11,56],[11,27,11,33],[10,27,10,33],[10,11,10,24],[10,34,10,47]]}
[]
[]
[null,null,"แบบประเมินผลการปฏิบัติงานของข้าราชการหรือพนักงานส่วนท้องถิ่น"]
[null,null,{"$f":"\"(สำหรับตำแหน่งประเภท\"&Data!F115&\")\"","v":"(สำหรับตำแหน่งประเภทวิชาการ และทั่วไป)"}]
[]
[null,null,"รอบการประเมิน",null,null,null,null,null,null,null,null,null,null,{"$f":"IF(Data!C119=1,BV7,BV6)","v":"þ"},null,null,null,null,null,{"$f":"\"ครั้งที่ 1     1 ตุลาคม \"&Data!C120-1&\" ถึง  31  มีนาคม \"&Data!C120","v":"ครั้งที่ 1     1 ตุลาคม 2562 ถึง  31  มีนาคม 2563"},null,null,null,null,null,null,null,null,null,null,null,null,null,null,null,null,null,null,null,null,null,null,null,null,null,null,null,null,null,null,null,null,null,null,null,null,null,null,null,null,null,null,null,null,null,null,null,null,null,null,null,null,null,"¨"]
[null,null,null,null,null,null,null,null,null,null,null,null,null,{"$f":"IF(Data!C119=2,BV7,BV6)","v":"¨"},null,null,null,null,null,{"$f":"\"ครั้งที่ 2     1 เมษายน \"&Data!C120&\" ถึง  30  กันยายน \"&Data!C120","v":"ครั้งที่ 2     1 เมษายน 2563 ถึง  30  กันยายน 2563"},null,null,null,null,null,null,null,null,null,null,null,null,null,null,null,null,null,null,null,null,null,null,null,null,null,null,null,null,null,null,null,null,null,null,null,null,null,null,null,null,null,null,null,null,null,null,null,null,null,null,null,null,null,"þ"]
[]
[null,null,"ผู้รับการประเมิน"]
[null,null,"เลขประจำตัวประชาชน",null,null,null,null,null,null,null,null,null,null,{"$f":"Data!C117","v":1312111098765},null,null,null,null,null,null,null,null,null,null,null,null,null,"ชื่อ - นามสกุล",null,null,null,null,null,null,{"$f":"Data!C116","v":"นายชุติพล  นิลพันธ์"},null,null,null,null,null,null,null,null,null,null,null,null,null,null,null,"ตำแหน่ง",null,null,null,null,null,null,{"$f":"Data!F117","v":"นายช่างเขียนแบบ"}]
[null,null,null,"ตำแหน่งประเภท",null,null,null,null,null,null,null,{"$f":"Data!F116","v":"ทั่วไป"},null,null,null,null,null,null,null,null,null,null,null,null,null,null,null,"ระดับ",null,null,null,null,null,null,{"$f":"Data!F118","v":"ปฎิบัติงาน"},null,null,null,null,null,null,null,null,null,null,null,null,null,null,null,"เลขที่ตำแหน่ง",null,null,null,null,null,null,{"$f":"Data!C118","v":109876543212}]
[null,null,null,"งาน",null,null,null,null,null,null,null,{"$f":"Data!F121","v":"วิศวกรรมและสถาปัตยกรรม"},null,null,null,null,null,null,null,null,null,null,null,null,null,null,null,"ส่วน/ฝ่าย",null,null,null,null,null,null,{"$f":"Data!F120","v":"แบบแผนและก่อสร้าง"},null,null,null,null,null,null,null,null,null,null,null,null,null,null,null,"สำนัก/กอง",null,null,null,null,null,null,{"$f":"Data!F119","v":"กองช่าง"}]
[null,null,"ผู้ประเมิน"]
[null,null,"เลขประจำตัวประชาชน",null,null,null,null,null,null,null,null,null,null,{"$f":"Data!C124","v":1453698715463},null,null,null,null,null,null,null,null,null,null,null,null,null,"ชื่อ - นามสกุล",null,null,null,null,null,null,{"$f":"Data!C123","v":"นายวิเชียร อรรถพร"},null,null,null,null,null,null,null,null,null,null,null,null,null,null,null,"ตำแหน่ง",null,null,null,null,null,null,{"$f":"Data!F124","v":"ผู้อำนวยการกองช่าง"}]
[null,null,null,"ตำแหน่งประเภท",null,null,null,null,null,null,null,{"$f":"Data!F123","v":"วิชาการ"},null,null,null,null,null,null,null,null,null,null,null,null,null,null,null,"ระดับ",null,null,null,null,null,null,{"$f":"Data!F125","v":"อาวุโส"},null,null,null,null,null,null,null,null,null,null,null,null,null,null,null,"สำนัก/กอง",null,null,null,null,null,null,{"$f":"Data!F119","v":"กองช่าง"}]

{"sheet":"P2","index":3,"n_rows":18,"n_cols":68,"rows_kept":18,"cut":false,"hidden":true,"merged":[[12,51,12,54],[12,59,12,62],[12,63,12,66],[12,67,12,70],[11,55,11,58],[11,59,11,62],[11,63,11,66],[11,67,11,70],[12,55,12,58],[11,51,11,54],[16,9,16,69],[16,3,16,7],[17,9,17,69],[13,26,13,44],[13,45,13,50],[13,51,13,54],[13,55,13,58],[13,59,13,62],[13,63,13,66],[14,2,14,6],[14,45,14,50],[14,51,14,54],[14,55,14,58],[14,59,14,62],[14,63,14,66],[13,67,13,70],[14,7,14,44],[10,2,10,6],[10,7,10,25],[10,26,10,44],[10,45,10,50],[12,2,12,6],[12,7,12,25],[12,26,12,44],[12,45,12,50],[11,2,11,6],[11,7,11,25],[11,26,11,44],[11,45,11,50],[8,67,8,70],[8,51,8,54],[10,59,10,62],[10,63,10,66],[10,67,10,70],[10,55,10,58],[10,51,10,54],[9,45,9,50],[9,51,9,54],[9,55,9,58],[6,2,8,6],[6,45,7,50],[8,45,8,50],[8,26,8,44],[8,7,8,25],[5,2,5,70],[8,55,8,58],[8,59,8,62],[8,63,8,66],[14,67,14,70],[13,2,13,6],[13,7,13,25],[9,59,9,62],[9,63,9,66],[9,67,9,70],[6,26,7,44],[6,7,7,25],[6,51,7,70],[9,2,9,6],[9,7,9,25],[9,26,9,44]]}
[]
[]
[null,null,null,{"$f":"\"ส่วนที่ 1 การประเมินผลสัมฤทธิ์ของงาน (ร้อยละ \"&IF(Data!F115=\"ข้าราชการบรรจุใหม่ หรืออยู่ระหว่างทดลองปฏิบัติราชการ\",50,70)&\")\"","v":"ส่วนที่ 1 การประเมินผลสัมฤทธิ์ของงาน (ร้อยละ 70)"}]
[]
[null,null,null,null,"1.1 ก่อนเริ่มรอบการประเมิน"]
[]
[null,null,"ลำดับที่",null,null,null,null,"ผลสัมฤทธิ์ของงาน",null,null,null,null,null,null,null,null,null,null,null,null,null,null,null,null,null,null,"ตัวชี้วัด",null,null,null,null,null,null,null,null,null,null,null,null,null,null,null,null,null,null,"น้ำหนัก (ร้อยละ)",null,null,null,null,null,"ระดับคะแนนและค่าเป้าหมาย ( D )"]
[]
[null,null,null,null,null,null,null,"( A )",null,null,null,null,null,null,null,null,null,null,null,null,null,null,null,null,null,null,"( B )",null,null,null,null,null,null,null,null,null,null,null,null,null,null,null,null,null,null,"( C )",null,null,null,null,null,1,null,null,null,2,null,null,null,3,null,null,null,4,null,null,null,5]
[null,null,1,null,null,null,null,"เขียนแบบ โครงการก่อสร้าง",null,null,null,null,null,null,null,null,null,null,null,null,null,null,null,null,null,null,"ร้อยละของโครงการ จำนวน 5 โครงการ ใช้เป็นแบบก่อสร้าง ถูกต้อง มีรายละเอียดครบถ้วน",null,null,null,null,null,null,null,null,null,null,null,null,null,null,null,null,null,null,20,null,null,null,null,null,70,null,null,null,75,null,null,null,80,null,null,null,85,null,null,null,90]
[null,null,2,null,null,null,null,"ควบคุมงานก่อสร้าง",null,null,null,null,null,null,null,null,null,null,null,null,null,null,null,null,null,null,"ร้อยละของโครงการ จำนวน 5 โครงการ ก่อสร้างถูกต้องตามแบบและสัญญาจ้าง",null,null,null,null,null,null,null,null,null,null,null,null,null,null,null,null,null,null,40,null,null,null,null,null,70,null,null,null,75,null,null,null,80,null,null,null,85,null,null,null,90]
[null,null,3,null,null,null,null,"คำนวณราคากลางอิเล็กทรอนิกส์",null,null,null,null,null,null,null,null,null,null,null,null,null,null,null,null,null,null,"ร้อยละของโครงการ จำนวน 2 โครงการ ดำเนินการถูกต้องตามหลักเกณฑ์ราคากลาง",null,null,null,null,null,null,null,null,null,null,null,null,null,null,null,null,null,null,10,null,null,null,null,null,75,null,null,null,80,null,null,null,85,null,null,null,90,null,null,null,95]
[]
[]
[null,null,null,null,null,null,null,"รวม",null,null,null,null,null,null,null,null,null,null,null,null,null,null,null,null,null,null,null,null,null,null,null,null,null,null,null,null,null,null,null,null,null,null,null,null,null,{"$f":"IF(Data!F115=\"ข้าราชการบรรจุใหม่ หรืออยู่ระหว่างทดลองปฏิบัติราชการ\",IF(SUM(AT10:AY14)=50,50,\"ผิดพลาด\"),IF(SUM(AT10:AY14)=70,70,\"ผิดพลาด\"))","v":70},null,null,null,null,null," - ",null,null,null," - ",null,null,null," - ",null,null,null," - ",null,null,null," - "]
[]
[null,null,null,"หมายเหตุ",null,null,null,null,null,"1. ในกรณีมีข้าราชการหรือพนักงานส่วนท้องถิ่นได้รับการแต่งตั้งให้ดำรงตำแหน่ง หรือระดับสูงขึ้น ให้นำวิสัยทัศน์หรือข้อเสนอในการพัฒนางานมากำหนดเป็นการประเมินผลสัมฤทธิ์ของงานในรอบการประเมินครั้งนั้น และครั้งถัดไปจนกว่าจะได้ผลสำเร็จตามตัวชี้วัดที่เสนอในวิสัยทัศน์หรือข้อเสนอ"]
[null,null,null,null,null,null,null,null,null,"2. กรณีช่อง \"ผลสัมฤทธิ์ของงาน\" หรือช่อง \"ตัวชี้วัด\" หากไม่สามารถกรอกรายละเอียดได้พอ อาจทำเป็นหลักฐานแนบท้ายแบบประเมินได้"]

{"sheet":"P3","index":4,"n_rows":17,"n_cols":63,"rows_kept":17,"cut":false,"hidden":true,"merged":[[8,7,8,24],[9,7,9,24],[9,25,9,43],[10,7,10,24],[10,25,10,43],[6,44,6,52],[7,7,7,24],[7,25,7,43],[7,53,7,61],[7,62,7,70],[16,3,16,7],[16,9,16,69],[14,2,14,6],[4,2,7,6],[6,53,6,61],[4,7,4,52],[6,62,6,70],[4,62,5,70],[4,53,4,61],[5,53,5,61],[7,44,7,52],[5,7,5,24],[6,7,6,24],[5,25,5,43],[6,25,6,43],[5,44,5,52],[9,2,9,6],[8,2,8,6],[3,2,3,70],[17,9,17,69],[12,44,12,52],[12,53,12,61],[12,62,12,70],[13,44,13,52],[12,7,12,24],[12,25,12,43],[13,7,13,24],[13,25,13,43],[14,7,14,43],[14,44,14,52],[14,53,14,61],[14,62,14,70],[13,2,13,6],[12,2,12,6],[11,2,11,6],[10,2,10,6],[13,53,13,61],[11,44,11,52],[11,53,11,61],[11,7,11,24],[11,25,11,43],[13,62,13,70],[8,25,8,43],[10,44,10,52],[10,53,10,61],[10,62,10,70],[9,53,9,61],[9,62,9,70],[11,62,11,70],[8,62,8,70],[8,44,8,52],[8,53,8,61],[9,44,9,52]]}
[]
[]
[null,null,null,null,"1.2 หลังสิ้นรอบการประเมิน"]
[]
[null,null,"ลำดับตัวชี้วัด",null,null,null,null,"การประเมินตนเอง",null,null,null,null,null,null,null,null,null,null,null,null,null,null,null,null,null,null,null,null,null,null,null,null,null,null,null,null,null,null,null,null,null,null,null,null,null,null,null,null,null,null,null,null,null,"ผลการประเมิน",null,null,null,null,null,null,null,null,"คะแนนที่ได้"]
[null,null,null,null,null,null,null,"ผลการดำเนินงาน",null,null,null,null,null,null,null,null,null,null,null,null,null,null,null,null,null,"หลักฐาน/ตัวบ่งชี้",null,null,null,null,null,null,null,null,null,null,null,null,null,null,null,null,null,null,"ผลการประเมิน",null,null,null,null,null,null,null,null,"ของผู้ประเมิน"]
[null,null,null,null,null,null,null,"ที่สำเร็จตามตัวชี้วัด",null,null,null,null,null,null,null,null,null,null,null,null,null,null,null,null,null,"ความสำเร็จ",null,null,null,null,null,null,null,null,null,null,null,null,null,null,null,null,null,null,"(ระดับคะแนน)",null,null,null,null,null,null,null,null,"(ระดับคะแนน)",null,null,null,null,null,null,null,null,"( I ) = ( C ) x ( H )"]
[null,null,null,null,null,null,null,"( E )",null,null,null,null,null,null,null,null,null,null,null,null,null,null,null,null,null,"( F )",null,null,null,null,null,null,null,null,null,null,null,null,null,null,null,null,null,null,"( G )",null,null,null,null,null,null,null,null,"( H )",null,null,null,null,null,null,null,null,"              5"]
[null,null,{"$f":"'P2'!C10:G10","v":1},null,null,null,null,85,null,null,null,null,null,null,null,null,null,null,null,null,null,null,null,null,null,"เอกสาร/หลักฐาน",null,null,null,null,null,null,null,null,null,null,null,null,null,null,null,null,null,null,{"$f":"IF(H9>0,ROUNDDOWN(MATCH(H9,'P2'!AZ$10:BS$10,0)/4+1,0),\"\")","v":4},null,null,null,null,null,null,null,null,4,null,null,null,null,null,null,null,null,{"$f":"('P2'!AT10*BB9)/5","v":16}]
[null,null,{"$f":"'P2'!C11:G11","v":2},null,null,null,null,90,null,null,null,null,null,null,null,null,null,null,null,null,null,null,null,null,null,"เอกสาร/หลักฐาน",null,null,null,null,null,null,null,null,null,null,null,null,null,null,null,null,null,null,{"$f":"IF(H10>0,ROUNDDOWN(MATCH(H10,'P2'!AZ$10:BS$10,0)/4+1,0),\"\")","v":5},null,null,null,null,null,null,null,null,4,null,null,null,null,null,null,null,null,{"$f":"('P2'!AT11*BB10)/5","v":32}]
[null,null,{"$f":"'P2'!C12:G12","v":3},null,null,null,null,90,null,null,null,null,null,null,null,null,null,null,null,null,null,null,null,null,null,"เอกสาร/หลักฐาน",null,null,null,null,null,null,null,null,null,null,null,null,null,null,null,null,null,null,{"$f":"IF(H11>0,ROUNDDOWN(MATCH(H11,'P2'!AZ$10:BS$10,0)/4+1,0),\"\")","v":5},null,null,null,null,null,null,null,null,3,null,null,null,null,null,null,null,null,{"$f":"('P2'!AT12*BB11)/5","v":6}]
[null,null,{"$f":"'P2'!C13:G13","v":0},null,null,null,null,null,null,null,null,null,null,null,null,null,null,null,null,null,null,null,null,null,null,null,null,null,null,null,null,null,null,null,null,null,null,null,null,null,null,null,null,null,{"$f":"IF(H12>0,ROUNDDOWN(MATCH(H12,'P2'!AZ$10:BS$10,0)/4+1,0),\"\")","v":""},null,null,null,null,null,null,null,null,null,null,null,null,null,null,null,null,null,{"$f":"('P2'!AT13*BB12)/5","v":0}]
[null,null,{"$f":"'P2'!C14:G14","v":0},null,null,null,null,null,null,null,null,null,null,null,null,null,null,null,null,null,null,null,null,null,null,null,null,null,null,null,null,null,null,null,null,null,null,null,null,null,null,null,null,null,{"$f":"IF(H13>0,ROUNDDOWN(MATCH(H13,'P2'!AZ$10:BS$10,0)/4+1,0),\"\")","v":""},null,null,null,null,null,null,null,null,null,null,null,null,null,null,null,null,null,{"$f":"('P2'!AT14*BB13)/5","v":0}]
[null,null,{"$f":"'P2'!C15:G15","v":0},null,null,null,null,null,null,null,null,null,null,null,null,null,null,null,null,null,null,null,null,null,null,null,null,null,null,null,null,null,null,null,null,null,null,null,null,null,null,null,null,null,{"$f":"IF(H14>0,ROUNDDOWN(MATCH(H14,'P2'!AZ$10:BS$10,0)/4+1,0),\"\")","v":""},null,null,null,null,null,null,null,null,null,null,null,null,null,null,null,null,null,{"$f":"('P2'!AT15*BB14)/5","v":0}]
[null,null,null,null,null,null,null,"รวม",null,null,null,null,null,null,null,null,null,null,null,null,null,null,null,null,null,null,null,null,null,null,null,null,null,null,null,null,null,null,null,null,null,null,null,null," - ",null,null,null,null,null,null,null,null," - ",null,null,null,null,null,null,null,null,{"$f":"SUM(BK9:BS14)","v":54}]
[]
[null,null,null,"หมายเหตุ",null,null,null,null,null,"หลักฐาน/ตัวบ่งชี้ความสำเร็จ หมายถึง หลักฐาน/เอกสารที่แสดงยืนยันต่อผู้ประเมินว่า ผลสัมฤทธิ์ของงานสำเร็จอยู่ในระดับคะแนนและค่าเป้าหมายใด"]

{"sheet":"P4","index":5,"n_rows":23,"n_cols":82,"rows_kept":23,"cut":false,"hidden":true,"merged":[[21,21,21,25],[21,26,21,32],[21,33,21,41],[11,4,11,20],[12,4,12,20],[13,4,13,20],[14,4,14,20],[15,4,15,20],[16,2,16,20],[17,4,17,20],[19,21,19,25],[19,26,19,32],[19,33,19,41],[20,21,20,25],[20,26,20,32],[20,33,20,41],[17,21,17,25],[17,26,17,32],[17,33,17,41],[18,21,18,25],[18,26,18,32],[18,33,18,41],[15,21,15,25],[15,26,15,32],[15,33,15,41],[16,21,16,25],[16,26,16,32],[16,33,16,41],[13,21,13,25],[13,26,13,32],[13,33,13,41],[14,21,14,25],[14,26,14,32],[14,33,14,41],[10,33,10,41],[10,2,10,20],[11,21,11,25],[11,26,11,32],[11,33,11,41],[12,21,12,25],[12,26,12,32],[12,33,12,41],[5,26,5,32],[6,26,6,32],[7,26,7,32],[8,26,8,32],[10,21,10,25],[10,26,10,32],[7,21,7,25],[4,2,8,20],[9,2,9,20],[4,21,4,25],[5,21,5,25],[8,21,8,25],[9,26,9,32],[9,21,9,25],[6,21,6,25],[4,33,4,55],[19,2,19,3],[20,2,20,3],[21,2,21,3],[19,4,19,20],[20,4,20,20],[21,4,21,20],[17,2,17,3],[18,2,18,3],[18,4,18,20],[22,56,22,61],[22,62,22,70],[11,2,11,3],[12,2,12,3],[13,2,13,3],[14,2,14,3],[15,2,15,3],[22,42,22,48],[22,49,22,55],[22,2,22,20],[22,21,22,25],[22,26,22,32],[22,33,22,41],[20,56,20,61],[20,62,20,70],[21,42,21,48],[21,49,21,55],[21,56,21,61],[21,62,21,70],[20,42,20,48],[20,49,20,55],[18,56,18,61],[18,62,18,70],[19,42,19,48],[19,49,19,55],[19,56,19,61],[19,62,19,70],[18,42,18,48],[18,49,18,55],[16,56,16,61],[16,62,16,70],[17,42,17,48],[17,49,17,55],[17,56,17,61],[17,62,17,70],[16,42,16,48],[16,49,16,55],[14,56,14,61],[14,62,14,70],[15,42,15,48],[15,49,15,55],[15,56,15,61],[15,62,15,70],[14,42,14,48],[14,49,14,55],[12,56,12,61],[12,62,12,70],[13,42,13,48],[13,49,13,55],[13,56,13,61],[13,62,13,70],[12,42,12,48],[12,49,12,55],[10,62,10,70],[11,42,11,48],[11,49,11,55],[11,56,11,61],[11,62,11,70],[8,62,8,70],[9,62,9,70],[10,42,10,48],[10,49,10,55],[8,56,8,61],[10,76,10,81],[12,74,16,74],[3,2,3,70],[4,56,4,61],[5,56,5,61],[6,56,6,61],[9,56,9,61],[6,49,6,55],[7,49,7,55],[8,49,8,55],[9,49,9,55],[6,62,6,70],[7,62,7,70],[4,62,5,70],[5,33,5,55],[6,33,6,48],[4,26,4,32],[9,42,9,48],[7,42,7,48],[8,42,8,48],[7,33,7,41],[8,33,8,41],[9,33,9,41],[10,56,10,61]]}
[]
[]
[null,null,null,{"$f":"\"ส่วนที่ 2  การประเมินสมรรถนะ (ร้อยละ \"&IF(Data!F115=\"ข้าราชการบรรจุใหม่ หรืออยู่ระหว่างทดลองปฏิบัติราชการ\",50,30)&\")\"","v":"ส่วนที่ 2  การประเมินสมรรถนะ (ร้อยละ 30)"}]
[]
[null,null,"สมรรถนะ",null,null,null,null,null,null,null,null,null,null,null,null,null,null,null,null,null,null,null,null,null,null,null,"ระดับ",null,null,null,null,null,null,"ระดับสมรรถนะที่ค้นพบ",null,null,null,null,null,null,null,null,null,null,null,null,null,null,null,null,null,null,null,null,null,null,"คะแนน",null,null,null,null,null,"คะแนนที่ได้"]
[null,null,null,null,null,null,null,null,null,null,null,null,null,null,null,null,null,null,null,null,null,null,null,null,null,null,"ที่คาดหวัง",null,null,null,null,null,null,"เมื่อเทียบกับพจนานุกรมสมรรถนะ",null,null,null,null,null,null,null,null,null,null,null,null,null,null,null,null,null,null,null,null,null,null,"ที่ได้"]
[null,null,null,null,null,null,null,null,null,null,null,null,null,null,null,null,null,null,null,null,null,"น้ำหนัก",null,null,null,null,"ตามมาตรฐาน",null,null,null,null,null,null,"การประเมินตนเอง",null,null,null,null,null,null,null,null,null,null,null,null,null,null,null,"ผลการประเมิน",null,null,null,null,null,null,"ตามตาราง",null,null,null,null,null,"( H ) = ( B ) x ( G )"]
[null,null,null,null,null,null,null,null,null,null,null,null,null,null,null,null,null,null,null,null,null,"(ร้อยละ)",null,null,null,null,"กำหนด",null,null,null,null,null,null,"หลักฐาน/ตัวบ่งชี้",null,null,null,null,null,null,null,null,"ผลการประเมิน",null,null,null,null,null,null,"ของผู้ประเมิน",null,null,null,null,null,null,"เปรียบเทียบ",null,null,null,null,null,"              5"]
[null,null,null,null,null,null,null,null,null,null,null,null,null,null,null,null,null,null,null,null,null,null,null,null,null,null,"ตำแหน่ง",null,null,null,null,null,null,"ความสำเร็จ",null,null,null,null,null,null,null,null,"(ระดับ)",null,null,null,null,null,null,"(ระดับ)"]
[null,null,"( A )",null,null,null,null,null,null,null,null,null,null,null,null,null,null,null,null,null,null,"( B )",null,null,null,null,"( C )",null,null,null,null,null,null,"( D )",null,null,null,null,null,null,null,null,"( E )",null,null,null,null,null,null,"( F )",null,null,null,null,null,null,"( G )"]
[null,null,"สมรรถนะหลัก",null,null,null,null,null,null,null,null,null,null,null,null,null,null,null,null,null,null,null,null,null,null,null,null,null,null,null,null,null,null,null,null,null,null,null,null,null,null,null,null,null,null,null,null,null,null,null,null,null,null,null,null,null,null,null,null,null,null,null,null,null,null,null,null,null,null,null,null,null,null,null,null,null,"ระดับที่ประเมินได้"]
[null,null,1,null,"การมุ่งผลสัมฤทธิ์",null,null,null,null,null,null,null,null,null,null,null,null,null,null,null,null,4,null,null,null,null,3,null,null,null,null,null,null,"เอกสาร/หลักฐาน",null,null,null,null,null,null,null,null,5,null,null,null,null,null,null,4,null,null,null,null,null,null,{"$f":"IF(E12>0,VLOOKUP(AA12,$BX$12:$CD$17,MATCH(AX12,$BX$12:$CD$12,0)),\"\")","v":5},null,null,null,null,null,{"$f":"IF(E12>0,(V12*BE12)/5,\"\")","v":4},null,null,null,null,null,null,null,null,null,null,null,null,null,0,1,2,3,4,5]
[null,null,2,null,"การยึดมั่นในความถูกต้องและจริยธรรม",null,null,null,null,null,null,null,null,null,null,null,null,null,null,null,null,4,null,null,null,null,3,null,null,null,null,null,null,"เอกสาร/หลักฐาน",null,null,null,null,null,null,null,null,3,null,null,null,null,null,null,4,null,null,null,null,null,null,{"$f":"IF(E13>0,VLOOKUP(AA13,$BX$12:$CD$17,MATCH(AX13,$BX$12:$CD$12,0)),\"\")","v":5},null,null,null,null,null,{"$f":"IF(E13>0,(V13*BE13)/5,\"\")","v":4},null,null,null,null,null,null,null,null,null,null,null,"ระดับความคาดหวัง",1,0,4,5,5,5,5]
[null,null,3,null,"ความเข้าใจในองค์กรและระบบงาน",null,null,null,null,null,null,null,null,null,null,null,null,null,null,null,null,4,null,null,null,null,3,null,null,null,null,null,null,"เอกสาร/หลักฐาน",null,null,null,null,null,null,null,null,3,null,null,null,null,null,null,4,null,null,null,null,null,null,{"$f":"IF(E14>0,VLOOKUP(AA14,$BX$12:$CD$17,MATCH(AX14,$BX$12:$CD$12,0)),\"\")","v":5},null,null,null,null,null,{"$f":"IF(E14>0,(V14*BE14)/5,\"\")","v":4},null,null,null,null,null,null,null,null,null,null,null,null,2,0,3,4,5,5,5]
[null,null,4,null,"การบริการเป็นเลิศ",null,null,null,null,null,null,null,null,null,null,null,null,null,null,null,null,2,null,null,null,null,3,null,null,null,null,null,null,"เอกสาร/หลักฐาน",null,null,null,null,null,null,null,null,4,null,null,null,null,null,null,4,null,null,null,null,null,null,{"$f":"IF(E15>0,VLOOKUP(AA15,$BX$12:$CD$17,MATCH(AX15,$BX$12:$CD$12,0)),\"\")","v":5},null,null,null,null,null,{"$f":"IF(E15>0,(V15*BE15)/5,\"\")","v":2},null,null,null,null,null,null,null,null,null,null,null,null,3,0,2,3,4,5,5]
[null,null,5,null,"การทำงานเป็นทีม",null,null,null,null,null,null,null,null,null,null,null,null,null,null,null,null,4,null,null,null,null,3,null,null,null,null,null,null,"เอกสาร/หลักฐาน",null,null,null,null,null,null,null,null,5,null,null,null,null,null,null,4,null,null,null,null,null,null,{"$f":"IF(E16>0,VLOOKUP(AA16,$BX$12:$CD$17,MATCH(AX16,$BX$12:$CD$12,0)),\"\")","v":5},null,null,null,null,null,{"$f":"IF(E16>0,(V16*BE16)/5,\"\")","v":4},null,null,null,null,null,null,null,null,null,null,null,null,4,0,1,2,3,4,5]
[null,null,{"$f":"IF(Data!F115=\"บริหารท้องถิ่น และอำนวยการท้องถิ่น\",\"สมรรถนะประจำผู้บริหาร\",\"สมรรถนะประจำสายงาน\")","v":"สมรรถนะประจำสายงาน"},null,null,null,null,null,null,null,null,null,null,null,null,null,null,null,null,null,null,null,null,null,null,null,null,null,null,null,null,null,null,"เอกสาร/หลักฐาน",null,null,null,null,null,null,null,null,null,null,null,null,null,null,null,null,null,null,null,null,null,null,null,null,null,null,null,null,null,null,null,null,null,null,null,null,null,null,null,null,null,5,0,0,1,2,3,4]
[null,null,1,null,{"$f":"IF(Data!F115=\"บริหารท้องถิ่น และอำนวยการท้องถิ่น\",\"การเป็นผู้นำในการเปลี่ยนแปลง\",\"ยึดมั่นในหลักเกณฑ์\")","v":"ยึดมั่นในหลักเกณฑ์"},null,null,null,null,null,null,null,null,null,null,null,null,null,null,null,null,4,null,null,null,null,2,null,null,null,null,null,null,"เอกสาร/หลักฐาน",null,null,null,null,null,null,null,null,3,null,null,null,null,null,null,2,null,null,null,null,null,null,{"$f":"IF(E18>0,VLOOKUP(AA18,$BX$12:$CD$17,MATCH(AX18,$BX$12:$CD$12,0)),\"\")","v":4},null,null,null,null,null,{"$f":"IF(E18>0,(V18*BE18)/5,\"\")","v":3.2}]
[null,null,2,null,{"$f":"IF(Data!F115=\"บริหารท้องถิ่น และอำนวยการท้องถิ่น\",\"ความสามารถในการเป็นผู้นำ\",\"การสั่งสมความรู้และความเชี่ยวชาญในสายอาชีพ\")","v":"การสั่งสมความรู้และความเชี่ยวชาญในสายอาชีพ"},null,null,null,null,null,null,null,null,null,null,null,null,null,null,null,null,4,null,null,null,null,2,null,null,null,null,null,null,"เอกสาร/หลักฐาน",null,null,null,null,null,null,null,null,2,null,null,null,null,null,null,2,null,null,null,null,null,null,{"$f":"IF(E19>0,VLOOKUP(AA19,$BX$12:$CD$17,MATCH(AX19,$BX$12:$CD$12,0)),\"\")","v":4},null,null,null,null,null,{"$f":"IF(E19>0,(V19*BE19)/5,\"\")","v":3.2}]
[null,null,3,null,{"$f":"IF(Data!F115=\"บริหารท้องถิ่น และอำนวยการท้องถิ่น\",\"ความสามารถในการพัฒนาคน\",\"ความละเอียดรอบคอบและความถูกต้องของงาน\")","v":"ความละเอียดรอบคอบและความถูกต้องของงาน"},null,null,null,null,null,null,null,null,null,null,null,null,null,null,null,null,4,null,null,null,null,2,null,null,null,null,null,null,"เอกสาร/หลักฐาน",null,null,null,null,null,null,null,null,3,null,null,null,null,null,null,3,null,null,null,null,null,null,{"$f":"IF(E20>0,VLOOKUP(AA20,$BX$12:$CD$17,MATCH(AX20,$BX$12:$CD$12,0)),\"\")","v":5},null,null,null,null,null,{"$f":"IF(E20>0,(V20*BE20)/5,\"\")","v":4}]
[null,null,{"$f":"IF(Data!F115=\"บริหารท้องถิ่น และอำนวยการท้องถิ่น\",4,\"\")","v":""},null,{"$f":"IF(Data!F115=\"บริหารท้องถิ่น และอำนวยการท้องถิ่น\",\"การคิดเชิงกลยุทธ์\",\"\")","v":""},null,null,null,null,null,null,null,null,null,null,null,null,null,null,null,null,null,null,null,null,null,null,null,null,null,null,null,null,null,null,null,null,null,null,null,null,null,null,null,null,null,null,null,null,null,null,null,null,null,null,null,{"$f":"IF(E21=\"\",\"\",VLOOKUP(AA21,$BX$12:$CD$17,MATCH(AX21,$BX$12:$CD$12,0)))","v":""},null,null,null,null,null,{"$f":"IF(E21=\"\",\"\",(V21*BE21)/5)","v":""}]
[null,null,{"$f":"IF(Data!F115=\"บริหารท้องถิ่น และอำนวยการท้องถิ่น\",5,\"\")","v":""},null,null,null,null,null,null,null,null,null,null,null,null,null,null,null,null,null,null,null,null,null,null,null,null,null,null,null,null,null,null,null,null,null,null,null,null,null,null,null,null,null,null,null,null,null,null,null,null,null,null,null,null,null,{"$f":"IF(E22=\"\",\"\",VLOOKUP(AA22,$BX$12:$CD$17,MATCH(AX22,$BX$12:$CD$12,0)))","v":""},null,null,null,null,null,{"$f":"IF(E22=\"\",\"\",(V22*BE22)/5)","v":""}]
[null,null,"รวม",null,null,null,null,null,null,null,null,null,null,null,null,null,null,null,null,null,null,{"$f":"IF(Data!F115=\"ข้าราชการบรรจุใหม่ หรืออยู่ระหว่างทดลองปฏิบัติราชการ\",IF(SUM(V12:Z22)=50,50,\"ผิดพลาด\"),IF(SUM(V12:Z22)=30,30,\"ผิดพลาด\"))","v":30},null,null,null,null," - ",null,null,null,null,null,null," - ",null,null,null,null,null,null,null,null," - ",null,null,null,null,null,null," - ",null,null,null,null,null,null," - ",null,null,null,null,null,{"$f":"SUM(BK11:BS22)","v":28.4}]

{"sheet":"P5","index":6,"n_rows":23,"n_cols":62,"rows_kept":23,"cut":false,"hidden":true,"merged":[[20,47,20,60],[22,47,22,60],[9,46,9,59],[3,2,3,70],[21,47,21,60],[4,2,4,70],[5,2,5,70],[9,10,9,23],[10,10,10,23],[8,10,8,23],[11,10,11,23],[8,24,8,31],[8,46,8,59],[8,60,8,67],[10,46,10,59],[11,46,11,59],[19,47,19,60],[19,61,19,68]]}
[]
[]
[null,null,null,"ส่วนที่ 3  ข้อตกลงการประเมินผลการปฎิบัติงาน"]
[]
[null,null,{"$f":"\"          ข้อตกลงการประเมินผลการปฏิบัติงานฉบับนี้จัดทำขึ้น ระหว่าง \"&Data!C116&\" ตำแหน่ง \"&Data!F117&Data!F118&\" ซึ่งต่อไปนี้จะเรียกว่า ผู้รับการประเมิน กับ \"&Data!C123&\" ตำแหน่ง \"&Data!F124&\" ซึ่งต่อไปนี้จะเรียกว่า ผู้ประเมิน\"","v":"          ข้อตกลงการประเมินผลการปฏิบัติงานฉบับนี้จัดทำขึ้น ระหว่าง นายชุติพล  นิลพันธ์ ตำแหน่ง นายช่างเขียนแบบปฎิบัติงาน ซึ่งต่อไปนี้จะเรียกว่า ผู้รับการประเมิน กับ นายวิเชียร อรรถพร ตำแหน่ง ผู้อำนวยการกองช่าง ซึ่งต่อไปนี้จะเรียกว่า ผู้ประเมิน"}]
[null,null,{"$f":"\"          ผู้ประเมิน และผู้รับการประเมิน ได้มีข้อตกลงร่วมกันกำหนดการประเมินผลการปฏิบัติงาน ประกอบด้วย ส่วนที่ 1 การประเมินผลสัมฤทธิ์ของงาน และส่วนที่ 2 การประเมินสมรรถนะ เพื่อใช้สำหรับประเมินผลการปฎิบัติงานในรอบการประเมิน ครั้งที่ \"&Data!C119&\" ประจำปีงบประมาณ พ.ศ. \"&Data!C120&\" โดยผู้รับการประเมินขอให้ข้อตกลงว่า จะมุ่งมั่นปฏิบัติงานให้เกิดผลงานที่ดีตามเป้าหมาย และเกิดประโยชน์แก่ประชาชนหรือทางราชการตามที่ได้ตกลงไว้ \"&\"และผู้ประเมินขอให้ข้อตกลงว่า ยินดีให้คำแนะนำ คำปรึกษาในการปฏิบัติงานแก่ผู้รับการประเมิน และจะประเมินผลการปฏิบัติงานด้วยความเป็นธรรม โปร่งใสตามที่ได้ตกลงกันไว้ \"&\"โดยทั้งสองฝ่ายได้รับทราบข้อตกลงการประเมินผลการปฏิบัติงานร่วมกันแล้ว จึงลงลายมือชื่อไว้เป็นหลักฐาน\"","v":"          ผู้ประเมิน และผู้รับการประเมิน ได้มีข้อตกลงร่วมกันกำหนดการประเมินผลการปฏิบัติงาน ประกอบด้วย ส่วนที่ 1 การประเมินผลสัมฤทธิ์ของงาน และส่วนที่ 2 การประเมินสมรรถนะ เพื่อใช้สำหรับประเมินผลการปฎิบัติงานในรอบการประเมิน ครั้งที่ 1 ประจำปีงบประมาณ พ.ศ. 2563 โดยผู้รับการประเมินขอให้ข้อตกลงว่า จะมุ่งมั่นปฏิบัติงานให้เกิดผลงานที่ดีตามเป้าหมาย และเกิดประโยชน์แก่ประชาชนหรือทางราชการตามที่ได้ตกลงไว้ และผู้ประเมินขอให้ข้อตกลงว่า ยินดีให้คำแนะนำ คำปรึกษาในการปฏิบัติงานแก่ผู้รับการประเมิน และจะประเมินผลการปฏิบัติงานด้วยความเป็นธรรม โปร่งใสตามที่ได้ตกลงกันไว้ โดยทั้งสองฝ่ายได้รับทราบข้อตกลงการประเมินผลการปฏิบัติงานร่วมกันแล้ว จึงลงลายมือชื่อไว้เป็นหลักฐาน"}]
[]
[]
[null,null,null,null,null,null,null,null,null,"ลงชื่อ","........................................................",null,null,null,null,null,null,null,null,null,null,null,null,null,"ผู้รับการประเมิน",null,null,null,null,null,null,null,null,null,null,null,null,null,null,null,null,null,null,null,null,"ลงชื่อ","........................................................",null,null,null,null,null,null,null,null,null,null,null,null,null,"ผู้ประเมิน"]
[null,null,null,null,null,null,null,null,null,null,{"$f":"\"(\"&Data!C116&\")\"","v":"(นายชุติพล  นิลพันธ์)"},null,null,null,null,null,null,null,null,null,null,null,null,null,null,null,null,null,null,null,null,null,null,null,null,null,null,null,null,null,null,null,null,null,null,null,{"$f":"\"(\"&Data!C123&\")\"","v":"(นายวิเชียร อรรถพร)"}]
[null,null,null,null,null,null,null,null,null,"ตำแหน่ง",{"$f":"Data!F117&Data!F118","v":"นายช่างเขียนแบบปฎิบัติงาน"},null,null,null,null,null,null,null,null,null,null,null,null,null,null,null,null,null,null,null,null,null,null,null,null,null,null,null,null,null,null,null,null,null,null,"ตำแหน่ง",{"$f":"Data!F124","v":"ผู้อำนวยการกองช่าง"}]
[null,null,null,null,null,null,null,null,null,"วันที่","........................................................",null,null,null,null,null,null,null,null,null,null,null,null,null,null,null,null,null,null,null,null,null,null,null,null,null,null,null,null,null,null,null,null,null,null,"วันที่","........................................................"]
[]
[null,null,null,"ส่วนที่ 4  สรุปผลการประเมิน"]
[]
[null,null,null,null,"4.1 ผลการประเมินตนเอง"]
[null,null,null,null,null,null,null,"ข้าพเจ้าขอรับรองว่า ได้ประเมินตนเองตามเอกสารหรือหลักฐาน/ตัวบ่งชี้ความสำเร็จที่มีอยู่จริง"]
[]
[]
[null,null,null,null,null,null,null,null,null,null,null,null,null,null,null,null,null,null,null,null,null,null,null,null,null,null,null,null,null,null,null,null,null,null,null,null,null,null,null,null,null,null,null,null,null,null,"ลงชื่อ","........................................................",null,null,null,null,null,null,null,null,null,null,null,null,null,"ผู้รับการประเมิน"]
[null,null,null,null,null,null,null,null,null,null,null,null,null,null,null,null,null,null,null,null,null,null,null,null,null,null,null,null,null,null,null,null,null,null,null,null,null,null,null,null,null,null,null,null,null,null,null,{"$f":"\"(\"&Data!C116&\")\"","v":"(นายชุติพล  นิลพันธ์)"}]
[null,null,null,null,null,null,null,null,null,null,null,null,null,null,null,null,null,null,null,null,null,null,null,null,null,null,null,null,null,null,null,null,null,null,null,null,null,null,null,null,null,null,null,null,null,null,"ตำแหน่ง",{"$f":"Data!F117&Data!F118","v":"นายช่างเขียนแบบปฎิบัติงาน"}]
[null,null,null,null,null,null,null,null,null,null,null,null,null,null,null,null,null,null,null,null,null,null,null,null,null,null,null,null,null,null,null,null,null,null,null,null,null,null,null,null,null,null,null,null,null,null,"วันที่","........................................................"]

{"sheet":"P6","index":7,"n_rows":23,"n_cols":62,"rows_kept":23,"cut":false,"hidden":true,"merged":[[27,2,27,16],[27,17,27,34],[27,35,27,52],[27,53,27,70],[25,2,25,16],[25,17,25,34],[25,35,25,52],[25,53,25,70],[26,2,26,16],[26,17,26,34],[26,35,26,52],[26,53,26,70],[23,2,23,16],[23,17,23,34],[23,35,23,52],[23,53,23,70],[24,2,24,16],[24,17,24,34],[24,35,24,52],[24,53,24,70],[21,2,21,16],[21,35,21,52],[22,2,22,16],[22,17,22,34],[22,35,22,52],[22,53,22,70],[20,17,21,34],[20,53,21,70],[9,37,9,40],[10,37,10,40],[13,47,13,60],[13,61,13,68],[14,47,14,60],[15,47,15,60],[16,47,16,60],[10,27,10,35],[4,36,5,70],[20,2,20,16],[20,35,20,52],[10,2,10,18],[6,5,7,18],[8,5,9,18],[8,27,9,35],[6,27,7,35],[6,37,6,40],[7,37,7,40],[8,37,8,40],[4,19,4,26],[5,19,5,26],[6,19,7,26],[8,19,9,26],[10,19,10,26],[4,2,5,18],[6,2,7,4],[8,2,9,4],[4,27,4,35],[5,27,5,35]]}
[]
[]
[null,null,null,null,"4.2 ผลการประเมินของผู้ประเมิน"]
[]
[null,null,"รายการ",null,null,null,null,null,null,null,null,null,null,null,null,null,null,null,null,"คะแนนเต็ม",null,null,null,null,null,null,null,"ผลการประเมิน",null,null,null,null,null,null,null,null,"ระดับผลการประเมิน"]
[null,null,null,null,null,null,null,null,null,null,null,null,null,null,null,null,null,null,null,"(ร้อยละ)",null,null,null,null,null,null,null,"(ร้อยละ)"]
[null,null,1,null,null,"ผลสัมฤทธิ์ของงาน",null,null,null,null,null,null,null,null,null,null,null,null,null,70,null,null,null,null,null,null,null,{"$f":"'P3'!BK15","v":54},null,null,null,null,null,null,null,null,null,{"$f":"IF($AB$11>=90,'P1'!BV7,'P1'!BV6)","v":"¨"},null,null,null,null,"ดีเด่น",null,null,null,null,null,null,null,"ตั้งแต่ร้อยละ 90 ขึ้นไป"]
[null,null,null,null,null,null,null,null,null,null,null,null,null,null,null,null,null,null,null,null,null,null,null,null,null,null,null,null,null,null,null,null,null,null,null,null,null,{"$f":"IF(AND($AB$11>=80,$AB$11<90),'P1'!BV7,'P1'!BV6)","v":"þ"},null,null,null,null,"ดีมาก",null,null,null,null,null,null,null,"ตั้งแต่ร้อยละ 80 แต่ไม่ถึงร้อยละ 90"]
[null,null,2,null,null,"การประเมินสมรรถนะ",null,null,null,null,null,null,null,null,null,null,null,null,null,30,null,null,null,null,null,null,null,{"$f":"'P4'!BK23","v":28.4},null,null,null,null,null,null,null,null,null,{"$f":"IF(AND($AB$11>=70,$AB$11<80),'P1'!BV7,'P1'!BV6)","v":"¨"},null,null,null,null,"ดี",null,null,null,null,null,null,null,"ตั้งแต่ร้อยละ 70 แต่ไม่ถึงร้อยละ 80"]
[null,null,null,null,null,null,null,null,null,null,null,null,null,null,null,null,null,null,null,null,null,null,null,null,null,null,null,null,null,null,null,null,null,null,null,null,null,{"$f":"IF(AND($AB$11>=60,$AB$11<70),'P1'!BV7,'P1'!BV6)","v":"¨"},null,null,null,null,"พอใจ",null,null,null,null,null,null,null,"ตั้งแต่ร้อยละ 60 แต่ไม่ถึงร้อยละ 70"]
[null,null,"รวม",null,null,null,null,null,null,null,null,null,null,null,null,null,null,null,null,100,null,null,null,null,null,null,null,{"$f":"SUM(AB7:AJ10)","v":82.4},null,null,null,null,null,null,null,null,null,{"$f":"IF($AB$11=0,'P1'!BV6,IF($AB$11<60,'P1'!BV7,'P1'!BV6))","v":"¨"},null,null,null,null,"ต้องปรับปรุง",null,null,null,null,null,null,null,"ต่ำกว่าร้อยละ 60"]
[]
[]
[null,null,null,null,null,null,null,null,null,null,null,null,null,null,null,null,null,null,null,null,null,null,null,null,null,null,null,null,null,null,null,null,null,null,null,null,null,null,null,null,null,null,null,null,null,null,"ลงชื่อ","........................................................",null,null,null,null,null,null,null,null,null,null,null,null,null,"ผู้ประเมิน"]
[null,null,null,null,null,null,null,null,null,null,null,null,null,null,null,null,null,null,null,null,null,null,null,null,null,null,null,null,null,null,null,null,null,null,null,null,null,null,null,null,null,null,null,null,null,null,null,{"$f":"\"(\"&Data!C123&\")\"","v":"(นายวิเชียร อรรถพร)"}]
[null,null,null,null,null,null,null,null,null,null,null,null,null,null,null,null,null,null,null,null,null,null,null,null,null,null,null,null,null,null,null,null,null,null,null,null,null,null,null,null,null,null,null,null,null,null,"ตำแหน่ง",{"$f":"Data!F124","v":"ผู้อำนวยการกองช่าง"}]
[null,null,null,null,null,null,null,null,null,null,null,null,null,null,null,null,null,null,null,null,null,null,null,null,null,null,null,null,null,null,null,null,null,null,null,null,null,null,null,null,null,null,null,null,null,null,"วันที่","........................................................"]
[]
[null,null,null,"ส่วนที่ 5  แผนพัฒนาการปฏิบัติราชการ"]
[]
[null,null,"ผลสัมฤทธิ์ของงานหรือสมรรถนะ",null,null,null,null,null,null,null,null,null,null,null,null,null,null,"วิธีการพัฒนา",null,null,null,null,null,null,null,null,null,null,null,null,null,null,null,null,null,"ช่วงเวลาและระยะเวลา",null,null,null,null,null,null,null,null,null,null,null,null,null,null,null,null,null,"วิธีการวัดผลในการพัฒนา"]
[null,null,"ที่เลือกพัฒนา",null,null,null,null,null,null,null,null,null,null,null,null,null,null,null,null,null,null,null,null,null,null,null,null,null,null,null,null,null,null,null,null,"การพัฒนา"]
[null,null,"(ก)",null,null,null,null,null,null,null,null,null,null,null,null,null,null,"(ข)",null,null,null,null,null,null,null,null,null,null,null,null,null,null,null,null,null,"(ค)",null,null,null,null,null,null,null,null,null,null,null,null,null,null,null,null,null,"(ง)"]

{"sheet":"P7","index":8,"n_rows":28,"n_cols":55,"rows_kept":28,"cut":false,"hidden":true,"merged":[[18,3,18,5],[19,3,19,5],[19,19,19,20],[8,31,8,44],[9,31,9,44],[10,31,10,44],[12,31,12,44],[20,19,20,20],[24,47,24,60],[25,47,25,60],[26,47,26,60],[27,47,27,60],[3,2,3,70],[8,54,8,67],[9,54,9,67],[10,54,10,67],[12,54,12,67],[11,8,11,21],[11,31,11,44],[11,54,11,67],[8,8,8,21],[9,8,9,21],[10,8,10,21],[12,8,12,21],[4,3,4,5],[4,26,4,28],[4,48,4,50]]}
[]
[]
[null,null,null,"ส่วนที่ 6  การแจ้งและรับทราบผลการประเมิน"]
[]
[null,null,null,"¨",null,null,"ได้แจ้งผลการประเมินให้ทราบแล้ว",null,null,null,null,null,null,null,null,null,null,null,null,null,null,null,null,null,null,null,"¨",null,null,"ได้รับทราบผลการประเมินแล้ว",null,null,null,null,null,null,null,null,null,null,null,null,null,null,null,null,null,null,"¨",null,null,"ได้แจ้งผลการประเมินแล้วเมื่อวันที่....................."]
[null,null,null,null,null,null,null,null,null,null,null,null,null,null,null,null,null,null,null,null,null,null,null,null,null,null,null,null,null,null,null,null,null,null,null,null,null,null,null,null,null,null,null,null,null,null,null,null,null,null,null,"แต่ผู้รับการประเมินไม่ยินยอมลงนามรับทราบ"]
[null,null,null,null,null,null,null,null,null,null,null,null,null,null,null,null,null,null,null,null,null,null,null,null,null,null,null,null,null,null,null,null,null,null,null,null,null,null,null,null,null,null,null,null,null,null,null,null,null,null,null,"โดยมี....................................................เป็นพยาน"]
[]
[null,null,null,null,null,null,null,"ลงชื่อ","........................................................",null,null,null,null,null,null,null,null,null,null,null,null,null,null,null,null,null,null,null,null,null,"ลงชื่อ","........................................................",null,null,null,null,null,null,null,null,null,null,null,null,null,null,null,null,null,null,null,null,null,"ลงชื่อ","........................................................"]
[null,null,null,null,null,null,null,null,{"$f":"\"(\"&Data!C123&\")\"","v":"(นายวิเชียร อรรถพร)"},null,null,null,null,null,null,null,null,null,null,null,null,null,null,null,null,null,null,null,null,null,null,{"$f":"\"(\"&Data!C116&\")\"","v":"(นายชุติพล  นิลพันธ์)"},null,null,null,null,null,null,null,null,null,null,null,null,null,null,null,null,null,null,null,null,null,null,"(.....................................................)"]
[null,null,null,null,null,null,null,"ตำแหน่ง",{"$f":"Data!F124","v":"ผู้อำนวยการกองช่าง"},null,null,null,null,null,null,null,null,null,null,null,null,null,null,null,null,null,null,null,null,null,"ตำแหน่ง",{"$f":"Data!F117&Data!F118","v":"นายช่างเขียนแบบปฎิบัติงาน"},null,null,null,null,null,null,null,null,null,null,null,null,null,null,null,null,null,null,null,null,null,"ตำแหน่ง","........................................................"]
[null,null,null,null,null,null,null,null,"ผู้ประเมิน",null,null,null,null,null,null,null,null,null,null,null,null,null,null,null,null,null,null,null,null,null,null,"ผู้รับการประเมิน",null,null,null,null,null,null,null,null,null,null,null,null,null,null,null,null,null,null,null,null,null,null,"พยาน"]
[null,null,null,null,null,null,null,"วันที่","........................................................",null,null,null,null,null,null,null,null,null,null,null,null,null,null,null,null,null,null,null,null,null,"วันที่","........................................................",null,null,null,null,null,null,null,null,null,null,null,null,null,null,null,null,null,null,null,null,null,"วันที่","........................................................"]
[]
[]
[null,null,null,"ส่วนที่ 7  ความเห็นของผู้บังคับบัญชาเหนือขึ้นไป (ถ้ามี)"]
[]
[]
[null,null,null,"¨",null,null,"เห็นชอบกับผลคะแนนของผู้ประเมิน"]
[null,null,null,"¨",null,null,"มีความเห็นแตกต่าง ดังนี้",null,null,null,null,null,null,null,null,null,null,null,null,1,null,"ผลสัมฤทธิ์ของงาน",null,null,null,null,null,null,null,null,null,null,null,null,null,null,null,null,null,null,null,null,null,null,"ควรได้คะแนนร้อยละ.....................","เหตุผล................................................................................................"]
[null,null,null,null,null,null,null,null,null,null,null,null,null,null,null,null,null,null,null,2,null,"สมรรถนะ",null,null,null,null,null,null,null,null,null,null,null,null,null,null,null,null,null,null,null,null,null,null,"ควรได้คะแนนร้อยละ.....................","เหตุผล................................................................................................"]
[null,null,null,null,null,null,null,null,null,null,null,null,null,null,null,null,null,null,null,null,null,null,null,null,null,null,null,null,null,null,null,null,null,null,null,null,null,null,null,null,null,null,null,null,"รวมคะแนนที่ควรได้ครั้งนี้ร้อยละ....................."]
[]
[]
[null,null,null,null,null,null,null,null,null,null,null,null,null,null,null,null,null,null,null,null,null,null,null,null,null,null,null,null,null,null,null,null,null,null,null,null,null,null,null,null,null,null,null,null,null,null,"ลงชื่อ","........................................................"]
[null,null,null,null,null,null,null,null,null,null,null,null,null,null,null,null,null,null,null,null,null,null,null,null,null,null,null,null,null,null,null,null,null,null,null,null,null,null,null,null,null,null,null,null,null,null,null,"(.....................................................)"]
[null,null,null,null,null,null,null,null,null,null,null,null,null,null,null,null,null,null,null,null,null,null,null,null,null,null,null,null,null,null,null,null,null,null,null,null,null,null,null,null,null,null,null,null,null,null,"ตำแหน่ง","........................................................"]
[null,null,null,null,null,null,null,null,null,null,null,null,null,null,null,null,null,null,null,null,null,null,null,null,null,null,null,null,null,null,null,null,null,null,null,null,null,null,null,null,null,null,null,null,null,null,"วันที่","........................................................"]

{"sheet":"P8","index":9,"n_rows":29,"n_cols":48,"rows_kept":29,"cut":false,"hidden":true,"merged":[[28,47,28,60],[20,3,20,5],[21,3,21,5],[21,19,21,20],[22,19,22,20],[25,47,25,60],[26,47,26,60],[27,43,27,64],[7,19,7,20],[10,47,10,60],[11,47,11,60],[14,47,14,60],[13,39,13,68],[12,43,12,64],[3,2,3,70],[5,3,5,5],[5,19,5,21],[5,36,5,38],[6,3,6,5],[6,19,6,20]]}
[]
[]
[null,null,null,"ส่วนที่ 8  ความเห็นของคณะกรรมการกลั่นกรองการประเมินผลการปฏิบัติงานของข้าราชการหรือพนักงานส่วนท้องถิ่น"]
[]
[]
[null,null,null,"¨",null,null,"เห็นชอบกับผลคะแนนของ",null,null,null,null,null,null,null,null,null,null,null,null,"¨",null,null,"ผู้ประเมิน ตามส่วนที่ 4 หรือ",null,null,null,null,null,null,null,null,null,null,null,null,null,"¨",null,null,"ผู้บังคับบัญชาเหนือขึ้นไป ตามส่วนที่ 7"]
[null,null,null,"¨",null,null,"มีความเห็นแตกต่าง ดังนี้",null,null,null,null,null,null,null,null,null,null,null,null,1,null,"ผลสัมฤทธิ์ของงาน",null,null,null,null,null,null,null,null,null,null,null,null,null,null,null,null,null,null,null,null,null,null,"ควรได้คะแนนร้อยละ.....................","เหตุผล................................................................................................"]
[null,null,null,null,null,null,null,null,null,null,null,null,null,null,null,null,null,null,null,2,null,"สมรรถนะ",null,null,null,null,null,null,null,null,null,null,null,null,null,null,null,null,null,null,null,null,null,null,"ควรได้คะแนนร้อยละ.....................","เหตุผล................................................................................................"]
[null,null,null,null,null,null,null,null,null,null,null,null,null,null,null,null,null,null,null,null,null,null,null,null,null,null,null,null,null,null,null,null,null,null,null,null,null,null,null,null,null,null,null,null,"รวมคะแนนที่ควรได้ครั้งนี้ร้อยละ....................."]
[]
[null,null,null,null,null,null,null,null,null,null,null,null,null,null,null,null,null,null,null,null,null,null,null,null,null,null,null,null,null,null,null,null,null,null,null,null,null,null,null,null,null,null,null,null,null,null,"ลงชื่อ","........................................................"]
[null,null,null,null,null,null,null,null,null,null,null,null,null,null,null,null,null,null,null,null,null,null,null,null,null,null,null,null,null,null,null,null,null,null,null,null,null,null,null,null,null,null,null,null,null,null,null,{"$f":"\"(\"&Data!C127&\")\"","v":"(นางสุดาทิพย์ มโนวราวุฒิ)"}]
[null,null,null,null,null,null,null,null,null,null,null,null,null,null,null,null,null,null,null,null,null,null,null,null,null,null,null,null,null,null,null,null,null,null,null,null,null,null,null,null,null,null,"ตำแหน่ง",{"$f":"IF(Data!C127>0,Data!F127,\"........................................................\")","v":"รองปลัดเทศบาล ปฏิบัติราชการแทนปลัดเทศบาล"}]
[null,null,null,null,null,null,null,null,null,null,null,null,null,null,null,null,null,null,null,null,null,null,null,null,null,null,null,null,null,null,null,null,null,null,null,null,null,null,null,"ประธานคณะกรรมการกลั่นกรองการประเมินผลการปฏิบัติงาน ฯ"]
[null,null,null,null,null,null,null,null,null,null,null,null,null,null,null,null,null,null,null,null,null,null,null,null,null,null,null,null,null,null,null,null,null,null,null,null,null,null,null,null,null,null,null,null,null,null,"วันที่","........................................................"]
[]
[]
[null,null,null,{"$f":"\"ส่วนที่ 9  ผลการพิจารณาของนายก\"&IF(Data!C130=\"องค์การบริหารส่วนตำบล\",Data!C130,IF(Data!C130=\"องค์การบริหารส่วนจังหวัด\",Data!C130,\"นายกเทศมนตรี\"))","v":"ส่วนที่ 9  ผลการพิจารณาของนายกนายกเทศมนตรี"}]
[]
[]
[null,null,null,"¨",null,null,"เห็นชอบตามความเห็นของคณะกรรมการกลั่นกรองการประเมินผลการปฏิบัติงานของข้าราชการหรือพนักงานส่วนท้องถิ่น"]
[null,null,null,"¨",null,null,"มีความเห็นแตกต่าง ดังนี้",null,null,null,null,null,null,null,null,null,null,null,null,1,null,"ผลสัมฤทธิ์ของงาน",null,null,null,null,null,null,null,null,null,null,null,null,null,null,null,null,null,null,null,null,null,null,"ควรได้คะแนนร้อยละ.....................","เหตุผล................................................................................................"]
[null,null,null,null,null,null,null,null,null,null,null,null,null,null,null,null,null,null,null,2,null,"สมรรถนะ",null,null,null,null,null,null,null,null,null,null,null,null,null,null,null,null,null,null,null,null,null,null,"ควรได้คะแนนร้อยละ.....................","เหตุผล................................................................................................"]
[null,null,null,null,null,null,null,null,null,null,null,null,null,null,null,null,null,null,null,null,null,null,null,null,null,null,null,null,null,null,null,null,null,null,null,null,null,null,null,null,null,null,null,null,"รวมคะแนนที่ควรได้ครั้งนี้ร้อยละ....................."]
[]
[null,null,null,null,null,null,null,null,null,null,null,null,null,null,null,null,null,null,null,null,null,null,null,null,null,null,null,null,null,null,null,null,null,null,null,null,null,null,null,null,null,null,null,null,null,null,"ลงชื่อ","........................................................"]
[null,null,null,null,null,null,null,null,null,null,null,null,null,null,null,null,null,null,null,null,null,null,null,null,null,null,null,null,null,null,null,null,null,null,null,null,null,null,null,null,null,null,null,null,null,null,null,{"$f":"\"(\"&Data!C128&\")\"","v":"(นายจารึก  เพ็ชรคง)"}]
[null,null,null,null,null,null,null,null,null,null,null,null,null,null,null,null,null,null,null,null,null,null,null,null,null,null,null,null,null,null,null,null,null,null,null,null,null,null,null,null,null,null,"ตำแหน่ง",{"$f":"IF(Data!C128>0,Data!E128,\"........................................................\")","v":"ปลัดเทศบาล ปฏิบัติหน้าที่นายกเทศมนตรี"}]
[null,null,null,null,null,null,null,null,null,null,null,null,null,null,null,null,null,null,null,null,null,null,null,null,null,null,null,null,null,null,null,null,null,null,null,null,null,null,null,null,null,null,null,null,null,null,"วันที่","........................................................"]

{"sheet":"Page 1","index":10,"n_rows":21,"n_cols":34,"rows_kept":21,"cut":false,"hidden":true,"merged":[[9,6,9,28],[9,1,9,5],[11,1,14,1],[11,2,14,2],[11,28,14,28],[11,27,12,27],[11,26,12,26],[14,26,15,26],[6,26,6,28],[7,6,7,25],[7,26,7,28],[7,1,7,5],[8,1,8,28],[20,3,20,26],[1,1,1,28],[5,1,5,28],[6,1,6,5],[6,6,6,25],[14,6,14,11],[13,12,13,17],[14,12,14,17],[13,18,13,25],[14,18,14,25],[11,3,12,5],[11,6,12,25],[13,6,13,11],[13,3,14,3],[13,4,14,4],[13,5,14,5]]}
[]
[null,"แบบประเมินผลการปฏิบัติงานของพนักงานส่วนท้องถิ่น"]
[null,"รอบการประเมิน    ",{"$f":"IF(Data!C119=1,AH4,AH3)","v":"þ"},{"$f":"\"ครั้งที่ 1     1 ตุลาคม \"&Data!C120-1&\" ถึง  31  มีนาคม \"&Data!C120","v":"ครั้งที่ 1     1 ตุลาคม 2562 ถึง  31  มีนาคม 2563"},null,null,null,null,null,null,null,null,null,null,null,null,null,null,null,null,null,null,null,null,null,null,null,null,null,null,null,null,null,"¨"]
[null,null,{"$f":"IF(Data!C119=2,AH4,AH3)","v":"¨"},{"$f":"\"ครั้งที่ 2     1 เมษายน \"&Data!C120&\" ถึง  30  กันยายน \"&Data!C120","v":"ครั้งที่ 2     1 เมษายน 2563 ถึง  30  กันยายน 2563"},null,null,null,null,null,null,null,null,null,null,null,null,null,null,null,null,null,null,null,null,null,null,null,null,null,null,null,null,null,"þ"]
[null,"ข้อมูลประวัติส่วนตัว"]
[null,"ผู้รับการประเมิน"]
[null,{"$f":"\"ชื่อ –  นามสกุล   \"&Data!C116","v":"ชื่อ –  นามสกุล   นายชุติพล  นิลพันธ์"},null,null,null,null,{"$f":"\"ตำแหน่ง (ชื่อตำแหน่งในสายงาน)  \"&Data!F117","v":"ตำแหน่ง (ชื่อตำแหน่งในสายงาน)  นายช่างเขียนแบบ"},null,null,null,null,null,null,null,null,null,null,null,null,null,null,null,null,null,null,null,{"$f":"\"ระดับตำแหน่ง  \"&Data!F118","v":"ระดับตำแหน่ง  ปฎิบัติงาน"}]
[null,{"$f":"\"ประเภทตำแหน่ง  \"&Data!F116","v":"ประเภทตำแหน่ง  ทั่วไป"},null,null,null,null,{"$f":"\"ตำแหน่งเลขที่  \"&Data!C118","v":"ตำแหน่งเลขที่  109876543212"},null,null,null,null,null,null,null,null,null,null,null,null,null,null,null,null,null,null,null,{"$f":"\"สังกัด  \"&Data!F119","v":"สังกัด  กองช่าง"}]
[null,"ผู้ประเมิน"]
[null,{"$f":"\"ชื่อ – นามสกุล   \"&Data!C123","v":"ชื่อ – นามสกุล   นายวิเชียร อรรถพร"},null,null,null,null,{"$f":"\"ตำแหน่ง (ชื่อตำแหน่งในการบริหารงาน)   \"&Data!F124","v":"ตำแหน่ง (ชื่อตำแหน่งในการบริหารงาน)   ผู้อำนวยการกองช่าง"}]
[null,"ส่วนที่ 1 ผลสัมฤทธิ์ของงาน (ไม่น้อยกว่าร้อยละ 70)"]
[null,"โครงการ/งาน/กิจกรรม ","น้ำ หนัก","เป้าหมาย (3)",null,null,"ผลการปฏิบัติงาน (7)",null,null,null,null,null,null,null,null,null,null,null,null,null,null,null,null,null,null,null,"รวมคะแนนผลการปฏิบัติงาน","ผลสัมฤทธิ์ของงาน","เหตุผลที่ทำให้งานบรรลุ/ไม่บรรลุเป้าหมาย"]
[]
[null,null,null,"เชิงปริมาณ","เชิงคุณภาพ","เชิงประโยชน์","ปริมาณ",null,null,null,null,null,"คุณภาพ",null,null,null,null,null,"ประโยชน์",null,null,null,null,null,null,null,"(11)","(12)"]
[null,null,null,null,null,null,"(8)",null,null,null,null,null,"(9)",null,null,null,null,null,"(10)",null,null,null,null,null,null,null,"  =(8)+(9)  +(10)","  =(2)x(11)"]
[null,"(1)","(2)","(4)","(5)","(6)",0.5,1,1.5,2,2.5,3,0.5,1,1.5,2,2.5,3,0.5,1,1.5,2,2.5,3,3.5,4,null,"10","(13)"]
[null,"1. เขียนแบบ โครงการก่อสร้าง",20,"จำนวน 5 โครงการ","ถูกต้อง มีรายละเอียดครบถ้วน","ใช้เป็นแบบก่อสร้าง",null,null,null,null,"x",null,null,null,null,null,"x",null,null,null,null,null,null,null,null,"x",{"$f":"SUM(AE17:AG17)","v":9},{"$f":"($C17*$AA17)/10","v":18},null,null,{"$f":"IF(G17=\"x\",$G$16,IF(H17=\"x\",$H$16,IF(I17=\"x\",$I$16,IF(J17=\"x\",$J$16,IF(K17=\"x\",$K$16,IF(L17=\"x\",$L$16,0))))))","v":2.5},{"$f":"IF(M17=\"x\",$M$16,IF(N17=\"x\",$N$16,IF(O17=\"x\",$O$16,IF(P17=\"x\",$P$16,IF(Q17=\"x\",$Q$16,IF(R17=\"x\",$R$16,0))))))","v":2.5},{"$f":"IF(S17=\"x\",$S$16,IF(T17=\"x\",$T$16,IF(U17=\"x\",$U$16,IF(V17=\"x\",$V$16,IF(W17=\"x\",$W$16,IF(X17=\"x\",$X$16,IF(Y17=\"x\",$Y$16,IF(Z17=\"x\",$Z$16,0))))))))","v":4}]
[null,"2.ควบคุมงานก่อสร้าง",40,"จำนวน 5 โครงการ","ถูกต้อง เป็นไปตามแบบ","มีความมั่นคงแข็งแรง ใช้งานได้ตามวัตถุประสงค์",null,null,null,null,null,"x",null,null,null,null,null,"x",null,null,null,null,null,null,null,"x",{"$f":"SUM(AE18:AG18)","v":10},{"$f":"($C18*$AA18)/10","v":40},null,null,{"$f":"IF(G18=\"x\",$G$16,IF(H18=\"x\",$H$16,IF(I18=\"x\",$I$16,IF(J18=\"x\",$J$16,IF(K18=\"x\",$K$16,IF(L18=\"x\",$L$16,0))))))","v":3},{"$f":"IF(M18=\"x\",$M$16,IF(N18=\"x\",$N$16,IF(O18=\"x\",$O$16,IF(P18=\"x\",$P$16,IF(Q18=\"x\",$Q$16,IF(R18=\"x\",$R$16,0))))))","v":3},{"$f":"IF(S18=\"x\",$S$16,IF(T18=\"x\",$T$16,IF(U18=\"x\",$U$16,IF(V18=\"x\",$V$16,IF(W18=\"x\",$W$16,IF(X18=\"x\",$X$16,IF(Y18=\"x\",$Y$16,IF(Z18=\"x\",$Z$16,0))))))))","v":4}]
[null,"3.คำนวณราคากลางอิเล็กทรอนิกส์",10,"จำนวน 3 โครงการ","ถูกต้องตามหลักเกณฑ์ราคากลาง","มีราคากลางให้หน่วยงานใช้อ้างอิงในการประกวดราคาจ้าง",null,null,null,null,"x",null,null,null,null,null,"x",null,null,null,null,null,null,null,null,"x",9,9,null,null,2.5,2.5,4]
[null,"ฯลฯ"]
[null,"น้ำหนักรวม",70,"คะแนนที่ได้",null,null,null,null,null,null,null,null,null,null,null,null,null,null,null,null,null,null,null,null,null,null,null,{"$f":"SUM(AB17:AB20)","v":67}]

{"sheet":"Page 2","index":11,"n_rows":19,"n_cols":17,"rows_kept":19,"cut":false,"hidden":true,"merged":[[5,11,5,16],[7,9,11,9],[18,3,18,5],[1,1,1,7],[4,1,5,1],[4,2,5,2],[4,3,5,3],[4,4,5,4],[4,5,5,5],[4,7,5,7]]}
[]
[null,"-2-"]
[]
[null,"ส่วนที่ 2 พฤติกรรมการปฏิบัติราชการ (สมรรถนะ) (ร้อยละ 30) สำหรับตำแหน่งประเภททั่วไป และประเภทวิชาการ"]
[null,"ตัวชี้วัดสมรรถนะ","น้ำหนัก","ระดับที่คาดหวัง/ต้องการ","ระดับที่ประเมินได้","คะแนนที่ได้","ผลการประเมิน","ระบุเหตุการณ์/พฤติกรรม              "]
[null,null,null,null,null,null,"(6) = (2) x (5)",null,null,null,null,"ระดับที่ประเมินได้"]
[null,"(1)","(2)","(3)","(4)","(5)","       5","(7)",null,null,null,0,1,2,3,4,5]
[null,"สมรรถนะหลัก (สำหรับทุกประเภท)",null,null,null,null,null,null,null,"ระดับความคาดหวัง",1,0,4,5,5,5,5]
[null,"1. การมุ่งผลสัมฤทธิ์",4,3,4,{"$f":"VLOOKUP(D9,$K$7:$Q$12,MATCH(E9,$K$7:$Q$7,0))","v":5},{"$f":"(C9*F9)/5","v":4},null,null,null,2,0,3,4,5,5,5]
[null,"2. การยึดมั่นในความถูกต้องและจริยธรรม",4,3,5,{"$f":"VLOOKUP(D10,$K$7:$Q$12,MATCH(E10,$K$7:$Q$7,0))","v":5},{"$f":"(C10*F10)/5","v":4},null,null,null,3,0,2,3,4,5,5]
[null,"3. ความเข้าใจในองค์กรและระบบงาน",4,3,3,4,3.2,null,null,null,4,0,1,2,3,4,5]
[null,"4. การบริการเป็นเลิศ",2,3,3,4,1.6,null,null,null,5,0,0,1,2,3,4]
[null,"5 การทำงานเป็นทีม",4,3,4,5,4]
[]
[null,"สมรรถนะประจำสายงานงาน                      (อย่างน้อย 3 สมรรถนะ)"]
[null,"1. การยึดมั่นในหลักเกณฑ์",4,2,3,5,4]
[null,"2. การสั่งสมความรู้และความเชี่ยวชาญในสายอาชีพ",4,2,3,5,4]
[null,"3. ความละเอียดรอบคอบและความถูกต้องของงาน",4,2,2,4,3.2]
[null,"น้ำหนักรวม",30,"คะแนนรวม",null,null,{"$f":"SUM(G8:G18)","v":27.999999999999996}]

{"sheet":"Page 3","index":12,"n_rows":21,"n_cols":8,"rows_kept":21,"cut":false,"hidden":true,"merged":[[1,1,1,5],[5,1,5,2],[21,1,25,2],[18,1,18,2],[19,1,19,2],[20,1,20,2],[4,5,5,5],[21,3,25,3],[21,4,25,4],[21,5,25,5],[6,1,6,2],[7,1,7,2],[8,1,8,2],[4,1,4,2]]}
[]
[null,"-3-"]
[]
[null,"สรุปผลการประเมิน"]
[null,"องค์ประกอบการประเมิน",null,"คะแนน (ร้อยละ)","ผลการประเมิน (ร้อยละ)","หมายเหตุ"]
[null,"(1)",null,"(2)","(3)"]
[null,"1. ผลสัมฤทธิ์ของงาน",null,70,{"$f":"'Page 1'!AB21","v":67}]
[null,"2. พฤติกรรมการปฏิบัติราชการ (สมรรถนะ)",null,30,{"$f":"IF(Data!F116=\"ทั่วไป\",'Page 2'!G19,IF(Data!F116=\"วิชาการ\",'Page 2'!G19,'PageB 2'!G25))","v":27.999999999999996}]
[null,"                                    คะแนนรวม ",null,100,{"$f":"SUM(E7:E8)","v":95}]
[]
[null,null,"   ระดับผลการประเมิน","                                                                     "]
[null,{"$f":"IF($E$9>=90,'Page 1'!AH4,'Page 1'!AH3)","v":"þ"},"ดีเด่น ","(ร้อยละ 90 ขึ้นไป)",null,null,null,"Ö"]
[null,{"$f":"IF(AND($E$9>=80,$E$9<90),'Page 1'!AH4,'Page 1'!AH3)","v":"¨"},"ดีมาก ","(ร้อยละ 80 แต่ไม่ถึงร้อยละ 90)"]
[null,{"$f":"IF(AND($E$9>=70,$E$9<80),'Page 1'!AH4,'Page 1'!AH3)","v":"¨"},"ดี  ","(ร้อยละ 70 แต่ไม่ถึงร้อยละ 80)"]
[null,{"$f":"IF(AND($E$9>=60,$E$9<70),'Page 1'!AH4,'Page 1'!AH3)","v":"¨"},"พอใช้  ","(ร้อยละ 60 แต่ไม่ถึงร้อยละ 70)"]
[null,{"$f":"IF($E$9=0,'Page 1'!AH3,IF($E$9<60,'Page 1'!AH4,'Page 1'!AH3))","v":"¨"},"ต้องปรับปรุง  ","(ต่ำกว่าร้อยละ 60)"]
[]
[null,"ส่วนที่ 3 แผนพัฒนาการปฏิบัติราชการรายบุคคล"]
[null,"ผลสัมฤทธิ์ของงาน /",null,"วิธีการพัฒนา","ช่วงเวลาที่ต้องการพัฒนา","วิธีการวัดผลในการพัฒนา"]
[null,"สมรรถนะที่เลือกพัฒนา"]
[null,"(1)",null,"(2)","(3)","(4)"]

{"sheet":"Page 4","index":13,"n_rows":21,"n_cols":9,"rows_kept":21,"cut":false,"hidden":true,"merged":[[17,1,17,2],[17,3,17,4],[5,8,5,12],[6,8,6,12],[9,4,9,6],[5,2,5,6],[1,2,1,6],[6,4,6,6],[7,4,7,6],[8,4,8,6]]}
[]
[null,null,"-4-"]
[]
[null,null,"    ส่วนที่ 4 ข้อตกลงการปฏิบัติราชการ"]
[]
[null,null,{"$f":"\"               ชื่อ - นามสกุล (ของผู้ทำข้อตกลง) \"&Data!C116&\" ตำแหน่ง \"&Data!F117&Data!F118&\"  \"&I7","v":"               ชื่อ - นามสกุล (ของผู้ทำข้อตกลง) นายชุติพล  นิลพันธ์ ตำแหน่ง นายช่างเขียนแบบปฎิบัติงาน  ได้เลือกตัวชี้วัดผลสัมฤทธิ์ของงาน และพฤติกรรมการปฏิบัติราชการ (สมรรถนะ) เพื่อขอรับการประเมิน โดยร่วมกับผู้ประเมิน (ผู้รับข้อตกลง) ในการกำหนดน้ำหนักและเป้าหมายตัวชี้วัด รวมทั้งกำหนดน้ำหนักสมรรถนะหลัก และสมรรถนะประจำสายงานงานในแต่ละสมรรถนะ พร้อมลงชื่อรับทราบข้อตกลงการปฏิบัติราชการร่วมกันตั้งแต่เริ่มระยะการประเมิน"},null,null,null,null,null,"               ชื่อ-นามสกุล (ผู้ทำข้อตกลง) "]
[null,null,"ลงชื่อ........................................................ผู้รับการประเมิน",null,"                             ลงชื่อ........................................................................ผู้ประเมิน",null,null,null,"ได้เลือกตัวชี้วัดผลสัมฤทธิ์ของงาน และพฤติกรรมการปฏิบัติราชการ (สมรรถนะ) เพื่อขอรับการประเมิน โดยร่วมกับผู้ประเมิน (ผู้รับข้อตกลง) ในการกำหนดน้ำหนักและเป้าหมายตัวชี้วัด รวมทั้งกำหนดน้ำหนักสมรรถนะหลัก และสมรรถนะประจำสายงานงานในแต่ละสมรรถนะ พร้อมลงชื่อรับทราบข้อตกลงการปฏิบัติราชการร่วมกันตั้งแต่เริ่มระยะการประเมิน"]
[null,null,{"$f":"\"            (\"&Data!C116&\")\"","v":"            (นายชุติพล  นิลพันธ์)"},null,{"$f":"\"                                          (\"&Data!C123&\")\"","v":"                                          (นายวิเชียร อรรถพร)"}]
[null,null,{"$f":"\"ตำแหน่ง  \"&Data!F117&Data!F118","v":"ตำแหน่ง  นายช่างเขียนแบบปฎิบัติงาน"},null,{"$f":"\"                          ตำแหน่ง        \"&Data!F124","v":"                          ตำแหน่ง        ผู้อำนวยการกองช่าง"}]
[null,null,"วันที่...............................................................",null,"                          วันที่.........................................................................."]
[]
[]
[null,null,"ส่วนที่ 5 การรับทราบผลการประเมิน"]
[]
[null,"ð","ได้รับทราบผลการประเมินและแผนพัฒนาการ","ð","ได้แจ้งผลการประเมินและผู้รับการประเมิน","ð","ได้แจ้งผลการประเมินเมื่อวันที่............................."]
[null,null,"ปฏิบัติราชการรายบุคคลแล้ว",null,"ได้ลงนามรับทราบแล้ว",null,"แต่ผู้รับการประเมินไม่ลงนามรับทราบ"]
[null,null,null,null,null,null,"โดยมี............................................................... เป็นพยาน"]
[null,"    ลงชื่อ..........................................................ผู้รับการประเมิน",null,"   ลงชื่อ............................................................ผู้ประเมิน",null,null,"ลงชื่อ ..............................................................พยาน"]
[null,null,{"$f":"\"            (\"&Data!C116&\")\"","v":"            (นายชุติพล  นิลพันธ์)"},null,{"$f":"\"              (\"&Data!C123&\")\"","v":"              (นายวิเชียร อรรถพร)"}]
[null,null,{"$f":"\"ตำแหน่ง  \"&Data!F117&Data!F118","v":"ตำแหน่ง  นายช่างเขียนแบบปฎิบัติงาน"},null,{"$f":"\"ตำแหน่ง       \"&Data!F124","v":"ตำแหน่ง       ผู้อำนวยการกองช่าง"},null,"ตำแหน่ง......................................................................."]
[null,null,"วันที่     .................................................................",null,"วันที่     .................................................................",null,"วันที่ ..............................................................................."]

{"sheet":"Page 5","index":14,"n_rows":27,"n_cols":3,"rows_kept":27,"cut":false,"hidden":true,"merged":[[2,1,2,2]]}
[]
[]
[null,"-5-"]
[null,"ส่วนที่ 6 ความเห็นของผู้บังคับบัญชาเหนือขึ้นไป (ถ้ามี)"]
[null,"ผู้บังคับบัญชาเหนือขึ้นไป ","ผู้บังคับบัญชาเหนือขึ้นไปอีกชั้นหนึ่ง"]
[null,"¨ เห็นด้วยกับผลการประเมิน","¨ เห็นด้วยกับผลการประเมิน"]
[null,"¨ มีความเห็นต่าง ดังนี้ .......................................................................................","¨ มีความเห็นต่าง ดังนี้ ................................................................................................."]
[null,"………………………………………………………………………………………………………………………………………………………………………………………………………………………………………………………………...…………","………………………………………………………………………………………………………………………………………………………………………………………………………………………………………………………………...…………"]
[]
[null,"                ลงชื่อ..................................................................","                  ลงชื่อ............................................................................."]
[null,"                     (.................................................................)","                        (……………………….………………..……………………….) "]
[null,"          ตำแหน่ง    ...............................................................","               ตำแหน่ง   …………………………………………………………"]
[null,"              วันที่     ...............................................................","                 วันที่     ............................................................................"]
[]
[null,"ส่วนที่ 7 มติคณะกรรมการกลั่นกรองการประเมินผลการปฏิบัติงาน","ส่วนที่ 8 ความเห็นของนายกองค์กรปกครองส่วนท้องถิ่น"]
[null,"¨ เห็นชอบตามผลคะแนนที่ผู้ประเมินเสนอ","¨ เห็นด้วยตามมติคณะกรรมการกลั่นกรองการประเมินผลการปฏิบัติงาน"]
[null,"¨ มีความเห็นต่าง ดังนี้ .......................................................................................","¨ มีความเห็นต่าง ดังนี้ ......................................................................................."]
[null,".............................................................................................................................","............................................................................................................................."]
[null,".............................................................................................................................","............................................................................................................................."]
[null,"คะแนนที่ควรได้รับ...................คะแนน","คะแนนที่ควรได้รับ...................คะแนน"]
[]
[]
[null,"  ลงชื่อ....................................................................","                ลงชื่อ................................................................"]
[null,"         (..........................................................)",{"$f":"\"                            (\"&Data!C128&\")\"","v":"                            (นายจารึก  เพ็ชรคง)"}]
[null,"ตำแหน่ง    ประธานคณะกรรมการกลั่นกรองฯ",{"$f":"\"            ตำแหน่ง  \"&IF(Data!E128=\"นายก ฯ\",VLOOKUP(Data!C130,Data!R142:S146,2,FALSE)&Data!F130,Data!E128)","v":"            ตำแหน่ง  ปลัดเทศบาล ปฏิบัติหน้าที่นายกเทศมนตรี"}]
[null,"วันที่     ............................................................",{"$f":"\"                     \"&IF(Data!E128=\"นายก ฯ\",\"วันที่ ........................................................\",VLOOKUP(Data!C130,Data!R142:S146,2,0)&Data!F130)","v":"                     นายกเทศมนตรีตำบลวัดประดู่"}]
[null,null,{"$f":"\"               \"&IF(Data!E128=\"ปลัดเทศบาล ปฏิบัติหน้าที่\",\"วันที่ ........................................................\",\"\")","v":"               "}]

{"sheet":"PageB 1","index":15,"n_rows":21,"n_cols":34,"rows_kept":21,"cut":false,"hidden":true,"merged":[[20,3,20,26],[13,3,14,3],[13,4,14,4],[13,5,14,5],[13,6,13,11],[13,12,13,17],[13,18,13,25],[14,6,14,11],[14,12,14,17],[14,18,14,25],[8,1,8,28],[9,1,9,5],[9,6,9,28],[11,1,14,1],[11,2,14,2],[11,3,12,5],[11,6,12,25],[11,26,12,26],[11,27,12,27],[11,28,14,28],[14,26,15,26],[7,1,7,5],[7,6,7,25],[7,26,7,28],[1,1,1,28],[5,1,5,28],[6,1,6,5],[6,6,6,25],[6,26,6,28]]}
[]
[null,"แบบประเมินผลการปฏิบัติงานของพนักงานส่วนท้องถิ่น"]
[null,"รอบการประเมิน    ",{"$f":"IF(Data!C119=1,AH4,AH3)","v":"þ"},{"$f":"\"ครั้งที่ 1     1 ตุลาคม \"&Data!C120-1&\" ถึง  31  มีนาคม \"&Data!C120","v":"ครั้งที่ 1     1 ตุลาคม 2562 ถึง  31  มีนาคม 2563"},null,null,null,null,null,null,null,null,null,null,null,null,null,null,null,null,null,null,null,null,null,null,null,null,null,null,null,null,null,"¨"]
[null,null,{"$f":"IF(Data!C119=2,AH4,AH3)","v":"¨"},{"$f":"\"ครั้งที่ 2     1 เมษายน \"&Data!C120&\" ถึง  30  กันยายน \"&Data!C120","v":"ครั้งที่ 2     1 เมษายน 2563 ถึง  30  กันยายน 2563"},null,null,null,null,null,null,null,null,null,null,null,null,null,null,null,null,null,null,null,null,null,null,null,null,null,null,null,null,null,"þ"]
[null,"ข้อมูลประวัติส่วนตัว"]
[null,"ผู้รับการประเมิน"]
[null,{"$f":"\"ชื่อ –  นามสกุล   \"&Data!C116","v":"ชื่อ –  นามสกุล   นายชุติพล  นิลพันธ์"},null,null,null,null,{"$f":"\"ตำแหน่ง (ชื่อตำแหน่งในสายงาน)  \"&Data!F117","v":"ตำแหน่ง (ชื่อตำแหน่งในสายงาน)  นายช่างเขียนแบบ"},null,null,null,null,null,null,null,null,null,null,null,null,null,null,null,null,null,null,null,{"$f":"\"ระดับตำแหน่ง  \"&Data!F118","v":"ระดับตำแหน่ง  ปฎิบัติงาน"}]
[null,{"$f":"\"ประเภทตำแหน่ง  \"&Data!F116","v":"ประเภทตำแหน่ง  ทั่วไป"},null,null,null,null,{"$f":"\"ตำแหน่งเลขที่  \"&Data!C118","v":"ตำแหน่งเลขที่  109876543212"},null,null,null,null,null,null,null,null,null,null,null,null,null,null,null,null,null,null,null,{"$f":"\"สังกัด  \"&Data!F119","v":"สังกัด  กองช่าง"}]
[null,"ผู้ประเมิน"]
[null,{"$f":"\"ชื่อ – นามสกุล   \"&Data!C123","v":"ชื่อ – นามสกุล   นายวิเชียร อรรถพร"},null,null,null,null,{"$f":"\"ตำแหน่ง (ชื่อตำแหน่งในการบริหารงาน)   \"&Data!F124","v":"ตำแหน่ง (ชื่อตำแหน่งในการบริหารงาน)   ผู้อำนวยการกองช่าง"}]
[null,"ส่วนที่ 1 ผลสัมฤทธิ์ของงาน (ไม่น้อยกว่าร้อยละ 70)"]
[null,"โครงการ/งาน/กิจกรรม ","น้ำ หนัก","เป้าหมาย (3)",null,null,"ผลการปฏิบัติงาน (7)",null,null,null,null,null,null,null,null,null,null,null,null,null,null,null,null,null,null,null,"รวมคะแนนผลการปฏิบัติงาน","ผลสัมฤทธิ์ของงาน","เหตุผลที่ทำให้งานบรรลุ/ไม่บรรลุเป้าหมาย"]
[]
[null,null,null,"เชิงปริมาณ","เชิงคุณภาพ","เชิงประโยชน์","ปริมาณ",null,null,null,null,null,"คุณภาพ",null,null,null,null,null,"ประโยชน์",null,null,null,null,null,null,null,"(11)","(12)"]
[null,null,null,null,null,null,"(8)",null,null,null,null,null,"(9)",null,null,null,null,null,"(10)",null,null,null,null,null,null,null,"  =(8)+(9)  +(10)","  =(2)x(11)"]
[null,"(1)","(2)","(4)","(5)","(6)",0.5,1,1.5,2,2.5,3,0.5,1,1.5,2,2.5,3,0.5,1,1.5,2,2.5,3,3.5,4,null,"10","(13)"]
[null,"1. เขียนแบบ โครงการก่อสร้าง",30,"จำนวน 10 โครงการ","ถูกต้อง มีรายละเอียดครบถ้วน","ใช้เป็นแบบก่อสร้าง",null,null,null,null,"x",null,null,null,null,null,"x",null,null,null,null,null,null,null,"x",null,{"$f":"SUM(AE17:AG17)","v":8.5},{"$f":"($C17*$AA17)/10","v":25.5},null,null,{"$f":"IF(G17=\"x\",$G$16,IF(H17=\"x\",$H$16,IF(I17=\"x\",$I$16,IF(J17=\"x\",$J$16,IF(K17=\"x\",$K$16,IF(L17=\"x\",$L$16,0))))))","v":2.5},{"$f":"IF(M17=\"x\",$M$16,IF(N17=\"x\",$N$16,IF(O17=\"x\",$O$16,IF(P17=\"x\",$P$16,IF(Q17=\"x\",$Q$16,IF(R17=\"x\",$R$16,0))))))","v":2.5},{"$f":"IF(S17=\"x\",$S$16,IF(T17=\"x\",$T$16,IF(U17=\"x\",$U$16,IF(V17=\"x\",$V$16,IF(W17=\"x\",$W$16,IF(X17=\"x\",$X$16,IF(Y17=\"x\",$Y$16,IF(Z17=\"x\",$Z$16,0))))))))","v":3.5}]
[null,"2.ควบคุมงานก่อสร้าง",10,"จำนวน 5 โครงการ","ถูกต้อง เป็นไปตามแบบ","มีความมั่นคงแข็งแรง ใช้งานได้ตามวัตถุประสงค์",null,null,null,null,"x",null,null,null,null,null,null,"x",null,null,null,null,null,null,"x",null,{"$f":"SUM(AE18:AG18)","v":9},{"$f":"($C18*$AA18)/10","v":9},null,null,{"$f":"IF(G18=\"x\",$G$16,IF(H18=\"x\",$H$16,IF(I18=\"x\",$I$16,IF(J18=\"x\",$J$16,IF(K18=\"x\",$K$16,IF(L18=\"x\",$L$16,0))))))","v":2.5},{"$f":"IF(M18=\"x\",$M$16,IF(N18=\"x\",$N$16,IF(O18=\"x\",$O$16,IF(P18=\"x\",$P$16,IF(Q18=\"x\",$Q$16,IF(R18=\"x\",$R$16,0))))))","v":3},{"$f":"IF(S18=\"x\",$S$16,IF(T18=\"x\",$T$16,IF(U18=\"x\",$U$16,IF(V18=\"x\",$V$16,IF(W18=\"x\",$W$16,IF(X18=\"x\",$X$16,IF(Y18=\"x\",$Y$16,IF(Z18=\"x\",$Z$16,0))))))))","v":3.5}]
[null,"3.ปรับปรุงโปรแกรมจัดทำรายงานการควบคุมงานก่อสร้าง",30,0.9,"ถูกต้องตามระเบียบและหนังสือสั่งการที่เกี่ยวข้อง","เพิ่มความสะดวก ในการค้นหาและอ้างอิงกฎหมาย",null,null,null,null,null,"x",null,null,null,null,null,"x",null,null,null,null,null,null,null,"x",10,30,null,null,3,3,4]
[null,"ฯลฯ"]
[null,"น้ำหนักรวม",70,"คะแนนที่ได้",null,null,null,null,null,null,null,null,null,null,null,null,null,null,null,null,null,null,null,null,null,null,null,{"$f":"SUM(AB17:AB20)","v":64.5}]

{"sheet":"PageB 2","index":16,"n_rows":25,"n_cols":17,"rows_kept":25,"cut":false,"hidden":true,"merged":[[5,11,5,16],[7,9,11,9],[24,3,24,5],[1,1,1,7],[4,1,5,1],[4,2,5,2],[4,3,5,3],[4,4,5,4],[4,5,5,5],[4,7,5,7]]}
[]
[null,"-2-"]
[]
[null,"ส่วนที่ 2 พฤติกรรมการปฏิบัติราชการ (สมรรถนะ) (ร้อยละ 30) สำหรับตำแหน่งประเภทอำนวยการ และประเภทบริหาร"]
[null,"ตัวชี้วัดสมรรถนะ","น้ำหนัก","ระดับที่คาดหวัง/ต้องการ","ระดับที่ประเมินได้","คะแนนที่ได้","ผลการประเมิน","ระบุเหตุการณ์/พฤติกรรม              "]
[null,null,null,null,null,null,"(6) = (2) x (5)",null,null,null,null,"ระดับที่ประเมินได้"]
[null,"(1)","(2)","(3)","(4)","(5)","       5","(7)",null,null,null,0,1,2,3,4,5]
[null,"สมรรถนะหลัก (สำหรับทุกประเภท)",null,null,null,null,null,null,null,"ระดับความคาดหวัง",1,0,4,5,5,5,5]
[null,"1. การมุ่งผลสัมฤทธิ์",2,1,2,{"$f":"VLOOKUP(D9,$K$7:$Q$12,MATCH(E9,$K$7:$Q$7,0))","v":5},{"$f":"(C9*F9)/5","v":2},null,null,null,2,0,3,4,5,5,5]
[null,"2. การยึดมั่นในความถูกต้องและจริยธรรม",2,1,3,{"$f":"VLOOKUP(D10,$K$7:$Q$12,MATCH(E10,$K$7:$Q$7,0))","v":5},{"$f":"(C10*F10)/5","v":2},null,null,null,3,0,2,3,4,5,5]
[null,"3. ความเข้าใจในองค์กรและระบบงาน",2,1,2,5,2,null,null,null,4,0,1,2,3,4,5]
[null,"4. การบริการเป็นเลิศ",2,1,3,5,2,null,null,null,5,0,0,1,2,3,4]
[null,"5 การทำงานเป็นทีม",2,1,3,5,2]
[null,"สมรรถนะผู้บริหาร"]
[null,"1.การเป็นผู้นำในการเปลี่ยนแปลง",2,1,3,5,2]
[null,"2.ความสามารถในการเป็นผู้นำ",3,1,2,5,3]
[null,"3.ความสามารถในการพัฒนาคน",3,1,2,5,3]
[null,"4.การคิดเชิงกลยุทธ์",2,1,3,5,2]
[]
[null,"สมรรถนะประจำสายงานงาน                      (อย่างน้อย 3 สมรรถนะ)"]
[null,"1. แก้ไขปัญหาและดำเนินการเชิงรุก",2,2,2,4,1.6]
[null,"2. การวางแผนและการจัดการ",2,2,4,5,2]
[null,"3. การสร้างให้เกิดการมีส่วนร่วมทุกภาคส่วน",3,2,3,5,3]
[null,"4. สร้างสรรค์เพื่อประโยชน์ของท้องถิ่น",3,2,2,4,2.4]
[null,"น้ำหนักรวม",30,"คะแนนรวม",null,null,{"$f":"SUM(G8:G24)","v":29}]

{"sheet":"PageB 3","index":17,"n_rows":21,"n_cols":8,"rows_kept":21,"cut":false,"hidden":true,"merged":[[21,4,25,4],[21,5,25,5],[8,1,8,2],[18,1,18,2],[19,1,19,2],[20,1,20,2],[21,1,25,2],[21,3,25,3],[7,1,7,2],[1,1,1,5],[4,1,4,2],[4,5,5,5],[5,1,5,2],[6,1,6,2]]}
[]
[null,"-3-"]
[]
[null,"สรุปผลการประเมิน"]
[null,"องค์ประกอบการประเมิน",null,"คะแนน (ร้อยละ)","ผลการประเมิน (ร้อยละ)","หมายเหตุ"]
[null,"(1)",null,"(2)","(3)"]
[null,"1. ผลสัมฤทธิ์ของงาน",null,70,{"$f":"'Page 1'!AB21","v":67}]
[null,"2. พฤติกรรมการปฏิบัติราชการ (สมรรถนะ)",null,30,{"$f":"IF(Data!F116=\"ทั่วไป\",'Page 2'!G19,IF(Data!F116=\"วิชาการ\",'Page 2'!G19,'PageB 2'!G25))","v":27.999999999999996}]
[null,"                                    คะแนนรวม ",null,100,{"$f":"SUM(E7:E8)","v":95}]
[]
[null,null,"   ระดับผลการประเมิน","                                                                     "]
[null,{"$f":"IF($E$9>=90,'Page 1'!AH4,'Page 1'!AH3)","v":"þ"},"ดีเด่น ","(ร้อยละ 90 ขึ้นไป)",null,null,null,"Ö"]
[null,{"$f":"IF(AND($E$9>=80,$E$9<90),'Page 1'!AH4,'Page 1'!AH3)","v":"¨"},"ดีมาก ","(ร้อยละ 80 แต่ไม่ถึงร้อยละ 90)"]
[null,{"$f":"IF(AND($E$9>=70,$E$9<80),'Page 1'!AH4,'Page 1'!AH3)","v":"¨"},"ดี  ","(ร้อยละ 70 แต่ไม่ถึงร้อยละ 80)"]
[null,{"$f":"IF(AND($E$9>=60,$E$9<70),'Page 1'!AH4,'Page 1'!AH3)","v":"¨"},"พอใช้  ","(ร้อยละ 60 แต่ไม่ถึงร้อยละ 70)"]
[null,{"$f":"IF($E$9=0,'Page 1'!AH3,IF($E$9<60,'Page 1'!AH4,'Page 1'!AH3))","v":"¨"},"ต้องปรับปรุง  ","(ต่ำกว่าร้อยละ 60)"]
[]
[null,"ส่วนที่ 3 แผนพัฒนาการปฏิบัติราชการรายบุคคล"]
[null,"ผลสัมฤทธิ์ของงาน /",null,"วิธีการพัฒนา","ช่วงเวลาที่ต้องการพัฒนา","วิธีการวัดผลในการพัฒนา"]
[null,"สมรรถนะที่เลือกพัฒนา"]
[null,"(1)",null,"(2)","(3)","(4)"]

{"sheet":"PageB 4","index":18,"n_rows":21,"n_cols":9,"rows_kept":21,"cut":false,"hidden":true,"merged":[[9,4,9,6],[17,1,17,2],[17,3,17,4],[1,2,1,6],[5,2,5,6],[5,8,5,12],[6,4,6,6],[6,8,6,12],[7,4,7,6],[8,4,8,6]]}
[]
[null,null,"-4-"]
[]
[null,null,"    ส่วนที่ 4 ข้อตกลงการปฏิบัติราชการ"]
[]
[null,null,{"$f":"\"               ชื่อ - นามสกุล (ของผู้ทำข้อตกลง) \"&Data!C116&\" ตำแหน่ง \"&Data!F117&Data!F118&\"  \"&I7","v":"               ชื่อ - นามสกุล (ของผู้ทำข้อตกลง) นายชุติพล  นิลพันธ์ ตำแหน่ง นายช่างเขียนแบบปฎิบัติงาน  ได้เลือกตัวชี้วัดผลสัมฤทธิ์ของงาน และพฤติกรรมการปฏิบัติราชการ (สมรรถนะ) เพื่อขอรับการประเมิน โดยร่วมกับผู้ประเมิน (ผู้รับข้อตกลง) ในการกำหนดน้ำหนักและเป้าหมายตัวชี้วัด รวมทั้งกำหนดน้ำหนักสมรรถนะหลัก และสมรรถนะประจำสายงานงานในแต่ละสมรรถนะ พร้อมลงชื่อรับทราบข้อตกลงการปฏิบัติราชการร่วมกันตั้งแต่เริ่มระยะการประเมิน"},null,null,null,null,null,"               ชื่อ-นามสกุล (ผู้ทำข้อตกลง) "]
[null,null,"ลงชื่อ........................................................ผู้รับการประเมิน",null,"                             ลงชื่อ........................................................................ผู้ประเมิน",null,null,null,"ได้เลือกตัวชี้วัดผลสัมฤทธิ์ของงาน และพฤติกรรมการปฏิบัติราชการ (สมรรถนะ) เพื่อขอรับการประเมิน โดยร่วมกับผู้ประเมิน (ผู้รับข้อตกลง) ในการกำหนดน้ำหนักและเป้าหมายตัวชี้วัด รวมทั้งกำหนดน้ำหนักสมรรถนะหลัก และสมรรถนะประจำสายงานงานในแต่ละสมรรถนะ พร้อมลงชื่อรับทราบข้อตกลงการปฏิบัติราชการร่วมกันตั้งแต่เริ่มระยะการประเมิน"]
[null,null,{"$f":"\"            (\"&Data!C116&\")\"","v":"            (นายชุติพล  นิลพันธ์)"},null,{"$f":"\"                                          (\"&Data!C123&\")\"","v":"                                          (นายวิเชียร อรรถพร)"}]
[null,null,{"$f":"\"ตำแหน่ง  \"&Data!F117&Data!F118","v":"ตำแหน่ง  นายช่างเขียนแบบปฎิบัติงาน"},null,{"$f":"\"                          ตำแหน่ง        \"&Data!F124","v":"                          ตำแหน่ง        ผู้อำนวยการกองช่าง"}]
[null,null,"วันที่...............................................................",null,"                          วันที่.........................................................................."]
[]
[]
[null,null,"ส่วนที่ 5 การรับทราบผลการประเมิน"]
[]
[null,"ð","ได้รับทราบผลการประเมินและแผนพัฒนาการ","ð","ได้แจ้งผลการประเมินและผู้รับการประเมิน","ð","ได้แจ้งผลการประเมินเมื่อวันที่............................."]
[null,null,"ปฏิบัติราชการรายบุคคลแล้ว",null,"ได้ลงนามรับทราบแล้ว",null,"แต่ผู้รับการประเมินไม่ลงนามรับทราบ"]
[null,null,null,null,null,null,"โดยมี............................................................... เป็นพยาน"]
[null,"    ลงชื่อ..........................................................ผู้รับการประเมิน",null,"   ลงชื่อ............................................................ผู้ประเมิน",null,null,"ลงชื่อ ..............................................................พยาน"]
[null,null,{"$f":"\"            (\"&Data!C116&\")\"","v":"            (นายชุติพล  นิลพันธ์)"},null,{"$f":"\"              (\"&Data!C123&\")\"","v":"              (นายวิเชียร อรรถพร)"}]
[null,null,{"$f":"\"ตำแหน่ง  \"&Data!F117&Data!F118","v":"ตำแหน่ง  นายช่างเขียนแบบปฎิบัติงาน"},null,{"$f":"\"ตำแหน่ง       \"&Data!F124","v":"ตำแหน่ง       ผู้อำนวยการกองช่าง"},null,"ตำแหน่ง......................................................................."]
[null,null,"วันที่     .................................................................",null,"วันที่     .................................................................",null,"วันที่ ..............................................................................."]

{"sheet":"PageB 5","index":19,"n_rows":27,"n_cols":3,"rows_kept":27,"cut":false,"hidden":true,"merged":[[2,1,2,2]]}
[]
[]
[null,"-5-"]
[null,"ส่วนที่ 6 ความเห็นของผู้บังคับบัญชาเหนือขึ้นไป (ถ้ามี)"]
[null,"ผู้บังคับบัญชาเหนือขึ้นไป ","ผู้บังคับบัญชาเหนือขึ้นไปอีกชั้นหนึ่ง"]
[null,"¨ เห็นด้วยกับผลการประเมิน","¨ เห็นด้วยกับผลการประเมิน"]
[null,"¨ มีความเห็นต่าง ดังนี้ .......................................................................................","¨ มีความเห็นต่าง ดังนี้ ................................................................................................."]
[null,"………………………………………………………………………………………………………………………………………………………………………………………………………………………………………………………………...…………","………………………………………………………………………………………………………………………………………………………………………………………………………………………………………………………………...…………"]
[]
[null,"                ลงชื่อ..................................................................","                  ลงชื่อ............................................................................."]
[null,"                     (.................................................................)","                        (……………………….………………..……………………….) "]
[null,"          ตำแหน่ง    ...............................................................","               ตำแหน่ง   …………………………………………………………"]
[null,"              วันที่     ...............................................................","                 วันที่     ............................................................................"]
[]
[null,"ส่วนที่ 7 มติคณะกรรมการกลั่นกรองการประเมินผลการปฏิบัติงาน","ส่วนที่ 8 ความเห็นของนายกองค์กรปกครองส่วนท้องถิ่น"]
[null,"¨ เห็นชอบตามผลคะแนนที่ผู้ประเมินเสนอ","¨ เห็นด้วยตามมติคณะกรรมการกลั่นกรองการประเมินผลการปฏิบัติงาน"]
[null,"¨ มีความเห็นต่าง ดังนี้ .......................................................................................","¨ มีความเห็นต่าง ดังนี้ ......................................................................................."]
[null,".............................................................................................................................","............................................................................................................................."]
[null,".............................................................................................................................","............................................................................................................................."]
[null,"คะแนนที่ควรได้รับ...................คะแนน","คะแนนที่ควรได้รับ...................คะแนน"]
[]
[]
[null,"  ลงชื่อ....................................................................","                ลงชื่อ................................................................"]
[null,"         (..........................................................)",{"$f":"\"                            (\"&Data!C128&\")\"","v":"                            (นายจารึก  เพ็ชรคง)"}]
[null,"ตำแหน่ง    ประธานคณะกรรมการกลั่นกรองฯ",{"$f":"\"            ตำแหน่ง  \"&IF(Data!E128=\"นายก ฯ\",VLOOKUP(Data!C130,Data!R142:S146,2,FALSE)&Data!F130,Data!E128)","v":"            ตำแหน่ง  ปลัดเทศบาล ปฏิบัติหน้าที่นายกเทศมนตรี"}]
[null,"วันที่     ............................................................",{"$f":"\"                     \"&IF(Data!E128=\"นายก ฯ\",\"วันที่ ........................................................\",VLOOKUP(Data!C130,Data!R142:S146,2,0)&Data!F130)","v":"                     นายกเทศมนตรีตำบลวัดประดู่"}]
[null,null,{"$f":"\"               \"&IF(Data!E128=\"ปลัดเทศบาล ปฏิบัติหน้าที่\",\"วันที่ ........................................................\",\"\")","v":"               "}]